Workbook

Sheet Site informations
A1: INPUT DATA
A3: Site location | C3: Hydraulic measures
A4: Site name | B4: makete | C4: Gross project head [m] | D4: 18.00
A5: Latitude | B5: -9.444678 | C5: Project head loss % | D5: 5%
A6: Longitude | B6: 34.273215 | C6: Minimum flow [m^3/s] | D6: 2.80
A7: Weir altitude above mean sea level [m] | B7: 1850 | C7: Minimum gauge period | D7: October
C8: Maximum flow [m^3/s] | D8: 4.00
C9: Maximum gauge period | D9: March
C10: Residual flow % | D10: 10%
A13: Hydrograph data
A14: Hydrograph input type | B14: Computed_hydrograph_[m^3/s]
A15: Month | B15: January | C15: February | D15: March | E15: April | F15: May | G15: June | H15: July | I15: August | J15: September | K15: October | L15: November | M15: December
A16: Hydrograph_data_[m^3/s]
A17: Rainfall data [l/m^2] | B17: 220 | C17: 219 | D17: 227 | E17: 208 | F17: 40 | G17: 8 | H17: 1 | I17: 1 | J17: 1 | K17: 34 | L17: 116 | M17: 263
A20: COMPUTATIONS
A22: Net project head [m] | B22: =$D$4*(1-$D$5) -> 17.10
A24: Rainfall to hydrograph
A25: Data counter | B25: =COLUMNS($B$17:$M$17) -> 12.00
A26: Rainfall annual average [l/m^2] | B26: =SUM($B$17:$M$17)/$B$25 -> 111.50
A27: Month | B27: January | C27: February | D27: March | E27: April | F27: May | G27: June | H27: July | I27: August | J27: September | K27: October | L27: November | M27: December
A28: Previous month rainfall Rate | B28: =M17/$B$26 -> 2.36 | C28: =B17/$B$26 -> 1.97 | D28: =C17/$B$26 -> 1.96 | E28: 2.04 | F28: 1.87 | G28: 0.36 | H28: 0.07 | I28: 0.01 | J28: 0.01 | K28: 0.01 | L28: 0.30 | M28: =L17/$B$26 -> 1.04
A29: Computed_hydrograph_[m^3/s] | B29: =$B$30*B28^$B$31 -> 4.05 | C29: =$B$30*C28^$B$31 -> 4.00 | D29: 4.00 | E29: 4.01 | F29: 3.99 | G29: 3.57 | H29: 3.21 | I29: 2.80 | J29: 2.80 | K29: 2.80 | L29: 3.54 | M29: 3.84
A30: Estimated annual average flow [m^3/s] | B30: =$D$6/(HLOOKUP($D$7,$A$27:$M$29,2,FALSE))^$B$31 -> 3.83
A31: Corrective factor (rainfall to hydrograph) | B31: 0.07
A32: Goal seek cell | B32: =$D$8-HLOOKUP($D$9,$B$27:$M$29,3,FALSE) -> -0.00
A35: Hydrograph
A36: Month | B36: January | C36: February | D36: March | E36: April | F36: May | G36: June | H36: July | I36: August | J36: September | K36: October | L36: November | M36: December
A37: Hydrograph [m^3/s] | B37: =IF($B$14=$A$16,B$16,B$29) -> 4.05 | C37: 4.00 | D37: 4.00 | E37: 4.01 | F37: 3.99 | G37: 3.57 | H37: 3.21 | I37: 2.80 | J37: 2.80 | K37: 2.80 | L37: 3.54 | M37: 3.84
A38: Annual average flow [m^3/s] | B38: =SUM($B$37:$M$37)/$B$25 -> 3.55
A39: Theoretical hydropower potential [kW] | B39: =B37*9.81*$D$4 -> 714.93 | C39: =C37*9.81*$D$4 -> 706.53 | D39: 706.32 | E39: 708.00 | F39: 703.92 | G39: 631.15 | H39: 567.38 | I39: 494.42 | J39: 494.42 | K39: 494.42 | L39: 624.40 | M39: =M37*9.81*$D$4 -> 677.23
A40: Hydropower potential range (Max, Min, Min adjusted) [kW] | B40: =MAX($B$39:$M$39) -> 714.93 | C40: =MIN($B$39:$M$39) -> 494.42 | D40: =$C$40*0.7 -> 346.10
A41: Mean theoretical hydropower potential [kW] | B41: =$B$38*9.81*$D$4 -> 626.93
A42: Residual flow [m^3/s] | B42: =MIN($B$38*$D$10,B37) -> 0.36 | C42: =MIN($B$38*$D$10,C37) -> 0.36 | D42: 0.36 | E42: 0.36 | F42: 0.36 | G42: 0.36 | H42: 0.36 | I42: 0.36 | J42: 0.36 | K42: 0.36 | L42: 0.36 | M42: 0.36
A45: SHEET OUTPUT
A52: Net project head [m] | B52: =$B$22 -> 17.10
A53: Hydrograph [m^3/s] | B53: =B$37 -> 4.05 | C53: =C$37 -> 4.00 | D53: 4.00 | E53: 4.01 | F53: 3.99 | G53: 3.57 | H53: 3.21 | I53: 2.80 | J53: 2.80 | K53: 2.80 | L53: 3.54 | M53: 3.84
A54: Residual flow [m^3/s] | B54: =B42 -> 0.36 | C54: 0.36 | D54: 0.36 | E54: 0.36 | F54: 0.36 | G54: 0.36 | H54: 0.36 | I54: 0.36 | J54: 0.36 | K54: 0.36 | L54: 0.36 | M54: 0.36
A55: Flow Duration Curve [m^3/s] | B55: 4.05 | C55: 4.01 | D55: 4.00 | E55: 4.00 | F55: 3.99 | G55: 3.84 | H55: 3.57 | I55: 3.54 | J55: 3.21 | K55: 2.80 | L55: 2.80 | M55: 2.80
A56: Cumulative time percentage % | B56: =1/$B$25 -> 8.33% | C56: =1/$B$25+B56 -> 16.67% | D56: 25.00% | E56: 33.33% | F56: 41.67% | G56: 50.00% | H56: 58.33% | I56: 66.67% | J56: 75.00% | K56: 83.33% | L56: 91.67% | M56: 100.00%
A57: Hydropower potential range (Max, Min, Min adjusted) [kW] | B57: =B40 -> 714.93 | C57: =C40 -> 494.42 | D57: =D40 -> 346.10
A110: END SHEET

Sheet Turbine informations
A1: INPUT DATA
A3: Power group and electrical equipment
A4: Turbine type | B4: Standard_Francis
A5: Turbine transport cost coefficient | B5: 1.20
A6: Electrical equipment transport cost coefficient | B6: 1.10
A7: Number of parallel turbines | B7: 2
A8: Utilities grid acces points | B8: 11
A9: Grid total length [km] | B9: 13.50
A10: Annual maintenance hours (up to 650) [h] | B10: 400
A11: Maintenance period | B11: October
A12: Nominal power group electrical power [kW] | B12: 340.00
A15: DATA FROM OTHER SHEETS
A18: Gross project head [m] | B18: ='Site informations'!$D$4 -> 18.00
A19: Net project head [m] | B19: ='Site informations'!$B$52 -> 17.10
A20: Month | B20: January | C20: February | D20: March | E20: April | F20: May | G20: June | H20: July | I20: August | J20: September | K20: October | L20: November | M20: December
A21: Hydrograph [m^3/s] | B21: ='Site informations'!B$53 -> 4.05 | C21: ='Site informations'!C$53 -> 4.00 | D21: ='Site informations'!D$53 -> 4.00 | E21: ='Site informations'!E$53 -> 4.01 | F21: ='Site informations'!F$53 -> 3.99 | G21: ='Site informations'!G$53 -> 3.57 | H21: ='Site informations'!H$53 -> 3.21 | I21: ='Site informations'!I$53 -> 2.80 | J21: ='Site informations'!J$53 -> 2.80 | K21: ='Site informations'!K$53 -> 2.80 | L21: ='Site informations'!L$53 -> 3.54 | M21: ='Site informations'!M$53 -> 3.84
A22: Residual flow [m^3/s] | B22: ='Site informations'!B$54 -> 0.36 | C22: ='Site informations'!C$54 -> 0.36 | D22: ='Site informations'!D$54 -> 0.36 | E22: ='Site informations'!E$54 -> 0.36 | F22: ='Site informations'!F$54 -> 0.36 | G22: ='Site informations'!G$54 -> 0.36 | H22: ='Site informations'!H$54 -> 0.36 | I22: ='Site informations'!I$54 -> 0.36 | J22: ='Site informations'!J$54 -> 0.36 | K22: ='Site informations'!K$54 -> 0.36 | L22: ='Site informations'!L$54 -> 0.36 | M22: ='Site informations'!M$54 -> 0.36
A23: Weir length [m] | B23: ='Plant informations'!$B$255 -> 10.00
A24: Utilities minimum power [kW] | B24: =Simulation!$B$5 -> 275.00
A25: Utilities peak power [kW] | B25: =Simulation!$B$6 -> 566.00
A26: Utilities load factor | B26: =Simulation!$B$4 -> 0.60
A27: Weir altitude on sea level [m] | B27: ='Site informations'!$B$7 -> 1850.00
A30: DATA FROM THEORY
A32: Power factor [kW/kVA] | B32: 0.9
A33: USD/€ ratio: | B33: 1.350
A35: Turbine group
A36: Turbine type | B36: Standard_Kaplan | C36: Standard_Francis | D36: Standard_Pelton_2_nozzles | E36: Table counter
A37: Max turbine efficiency | B37: 0.92 | C37: 0.94 | D37: 0.90 | E37: 2
A38: Generator organic and electrical efficiency | B38: 0.95 | E38: 3
A39: Flow rate inferior limit % | B39: 10% | C39: 30% | D39: 10% | E39: 4
A40: Efficiency ratio at 10% flow rate (Eta/EtaMax) | B40: 0.41 | C40: 0.00 | D40: 0.54 | E40: 5
A41: Efficiency ratio at 20% flow rate | B41: 0.82 | C41: 0.00 | D41: 0.87 | E41: 6
A42: Efficiency ratio at 30% flow rate | B42: 0.92 | C42: 0.40 | D42: 0.97 | E42: 7
A43: Efficiency ratio at 40% flow rate | B43: 0.96 | C43: 0.63 | D43: 0.99 | E43: 8
A44: Efficiency ratio at 50% flow rate | B44: 0.99 | C44: 0.78 | D44: 1.00 | E44: 9
A45: Efficiency ratio at 60% flow rate | B45: 1.00 | C45: 0.88 | D45: 1.00 | E45: 10
A46: Efficiency ratio at 70% flow rate | B46: 1.00 | C46: 0.94 | D46: 1.00 | E46: 11
A47: Efficiency ratio at 80% flow rate | B47: 1.00 | C47: 0.99 | D47: 1.00 | E47: 12
A48: Efficiency ratio at 90% flow rate | B48: 1.00 | C48: 1.00 | D48: 1.00 | E48: 13
A49: Efficiency ratio at 100% flow rate | B49: 0.99 | C49: 0.99 | D49: 0.98 | E49: 14
A50: Bar spacing [m] | B50: 0.090 | C50: 0.045 | D50: 0.025 | E50: 15
A51: 1 turbine specific speed coefficient c1/H | B51: 2.294 | C51: 1.924 | D51: 0.121 | E51: 16
A52: 2 turbine specific speed coefficient H^c2 | B52: 0.486 | C52: 0.512 | D52: 0.243 | E52: 17
A53: 1 turbine specific cost coefficient [€] c1* | B53: 33236.000 | C53: 25698.000 | D53: 17693.000 | E53: 18
A54: 2 turbine specific cost coefficient H^c2 | B54: -0.114 | C54: -0.127 | D54: -0.282 | E54: 19
A55: 3 turbine specific cost coefficient P^c3 | B55: -0.583 | C55: -0.560 | D55: -0.364 | E55: 20
A60: Grid transformer (0,4/11 kV)
A61: 1 transformer cost coefficient [USD] c1* | B61: 2,034
A62: 2 transformer cost coefficient [kVA] P^c2 | B62: 0.48
A65: Transmission grid (11 kV, 100 mm^2)
A66: Grid line voltage [kV] | B66: 11.00
A67: Electrical resistance, single fase [Ohm/km] | B67: 0.27
A68: Grid cost [USD/km] | B68: 16,594
A75: COMPUTATIONS
A77: Single turbine electrical power [kW] | B77: =$B$12/$B$7 -> 170.00
A80: Turbine technical parameters
A81: Input | C81: Efficiency | E81: Speed and discharge | G81: Turbine sizing by type | H81: =B$36 -> Standard_Kaplan | I81: =C$36 -> Standard_Francis | J81: Standard_Pelton_2_nozzles | K81: Turbine sizing (effective type) | M81: Kaplan and Francis cavitation check | O81: Pelton D1/B2 ratio check
A82: Turbine type | B82: =$B$4 -> Standard_Francis | C82: Turbine efficiency at max flow rate | D82: =B89*B88 -> 0.93 | E82: Power group discharge (nom) [m^3/s] | F82: =B86/(9.81*B85*D84) -> 2.29 | G82: 1st turbine dimension | H82: Kaplan Di : runner hub diameter [m] | I82: Francis D1 : inlet min diameter [m] | J82: Pelton D1 : jets tangent circle [m] | K82: =HLOOKUP($B$82,$H$81:$J$87,2,FALSE) -> Francis D1 : inlet min diameter [m] | L82: =HLOOKUP($B$82,$H$81:$J$87,3,FALSE) -> 0.26 | M82: Powerhouse altitude over sea level [m] | N82: =B93-B84 -> 1832.00 | O82: =J83/J85 -> 0.2296
A83: Number of parallel turbines | B83: =$B$7 -> 2 | C83: Max global efficiency | D83: =B88*B90 -> 0.89 | E83: Single turbine discharge (nom) [m^3/s] | F83: =F82/B83 -> 1.15 | H83: =(0.25+0.0951/F84)*H85 -> 0.21 | I83: =(0.4+0.095/F84)*I87 -> 0.26 | J83: =0.68*(B85)^0.5/F85 -> 0.14 | K83: =HLOOKUP($B$82,$H$81:$J$87,4,FALSE) -> Francis D2 : inlet max diameter [m] | L83: =HLOOKUP($B$82,$H$81:$J$87,5,FALSE) -> 0.38 | M83: Atmospheric pressure [Pa] | N83: =(8416-N82)/8333*10^5 -> 79011.16 | O83: =IF(O82>2.7,"True","False") -> False
A84: Gross project head [m] | B84: =$B$18 -> 18.00 | C84: Global efficiency at max flow rate | D84: =D82*B90 -> 0.88 | E84: Mean specific speed (nQE) [-] | F84: =B91/B85^B92 -> 0.45 | G84: 2nd turbine dimension | H84: Kaplan De : runner outer diameter [m] | I84: Francis D2 : inlet max diameter [m] | J84: Pelton B2 : bucket width [m] | K84: =HLOOKUP($B$82,$H$81:$J$87,6,FALSE) -> Francis D3 : outlet diameter [m] | L84: =HLOOKUP($B$82,$H$81:$J$87,7,FALSE) -> 0.43 | M84: Thoma's sigma | N84: =HLOOKUP($B$82,$H$81:$J$89,9,FALSE) -> 0.4239
A85: Net project head [m] | B85: =$B$19 -> 17.10 | E85: Theoretical turbine speed [Hz] | F85: =F84*(9.81*B85)^(3/4)/F83^(0.5) -> 19.57 | H85: =84.5*(0.79+1.602*F84)*B85^0.5/F86 -> 0.45 | I85: =I87/(0.96+0.3781*F84) -> 0.38 | J85: =1.68*(F83/(2*B85^0.5))^0.5 -> 0.63 | K85: Main turbine dimension [m] | L85: =MAX(L82:L84) -> 0.43 | M85: Suction head [m] | N85: =(N83-B94)/(1000*9.81)+2^2/(2*9.81)-N84*B85 -> 0.77
A86: Power group electrical power [kW] | B86: =$B$12 -> 340.00 | E86: Theoretical turbine speed [rpm] | F86: =F85*60 -> 1174.28 | G86: 3rd turbine dimension | H86: None | I86: Francis D3 : outlet diameter [m] | J86: Pelton De : nozzle diameter [m]
A87: Single turbine electrical power [kW] | B87: =$B$77 -> 170.00 | I87: =84.5*(0.31+2.488*F84)*B85^0.5/F86 -> 0.43 | J87: =1.178*(F83/(2*(9.81*B85)^0.5))^0.5 -> 0.25
A88: Max turbine efficiency | B88: =HLOOKUP($B$4,$A$36:$D$55,$E37,FALSE) -> 0.94 | G88: Cavitation check | H88: Thoma's sigma | I88: Thoma's sigma
A89: Turbine efficiency rate at max flow rate | B89: =HLOOKUP($B$4,$A$36:$D$55,$E49,FALSE) -> 0.99 | H89: =1.5241*F84^1.46+4/(2*9.81*B85) -> 0.4865 | I89: =1.2715*F84^1.41+(4/(2*9.81*B85)) -> 0.4239
A90: Organic and electric efficiency | B90: =$B$38 -> 0.95
A91: 1 turbine specific speed coefficient c1/H | B91: =HLOOKUP($B$4,$A$36:$D$55,$E51,FALSE) -> 1.924
A92: 2 turbine specific speed coefficient H^c2 | B92: =HLOOKUP($B$4,$A$36:$D$55,$E52,FALSE) -> 0.512
A93: Weir altitude on sea level [m] | B93: =B27 -> 1850.00
A94: Water vapour pressure (20°C) [Pa] | B94: 2338.00
A98: Cost analysis
A99: Input | C99: Power group costs | E99: Electrical equipment costs
A100: USD/€ ratio: | B100: =$B$33 -> 1.35 | C100: Turbine group specific cost (from cost function) [€/kW] | D100: =B110*B104^B111*B108^B112 -> 1008.46 | E100: Transmission grid specific cost [USD/km] | F100: =B115 -> 16,594
A101: Turbine transport cost coefficient | B101: =$B$5 -> 1.20 | C101: Turbine group cost [USD] | D101: =B100*B108*D100 -> 231,441 | E101: Transmission grid cost [USD] | F101: =F100*B106 -> 224,019
A102: Electrical equipment transport cost coefficient | B102: =$B$6 -> 1.10 | C102: Power group final cost [USD] | D102: =B101*B103*D101 -> 555,457 | E102: Step up transformer cost (from cost function) [USD] | F102: =B113*(B107/B109)^B114 -> 35,109
A103: Number of parallel turbines | B103: =$B$7 -> 2 | E103: Step down transformer(s) cost (from cost function) [USD] | F103: =IF(B105=0,0,B105*B113*((B107/B105)/B109)^B114) -> 122,166
A104: Net project head [m] | B104: =$B$19 -> 17.10 | E104: Transmission grid final cost [USD] | F104: =F101*B102 -> 246,421
A105: Utilities grid acces points | B105: =$B$8 -> 11.00 | E105: Step up transformer final cost [USD] | F105: =F102*B102 -> 38,620
A106: Grid total length [km] | B106: =$B$9 -> 13.50 | E106: Step down transformer(s) final cost [USD] | F106: =F103*B102 -> 134,382
A107: Power group electrical power [kW] | B107: =$B$12 -> 340.00
A108: Single turbine electrical power [kW] | B108: =$B$77 -> 170.00
A109: Power factor [kW/kVA] | B109: =$B$32 -> 0.90
A110: 1 turbine specific cost coefficient [€] c1* | B110: =HLOOKUP($B$4,$A$36:$D$55,$E53,FALSE) -> 25698.000
A111: 2 turbine specific cost coefficient H^c2 | B111: =HLOOKUP($B$4,$A$36:$D$55,$E54,FALSE) -> -0.127
A112: 3 turbine specific cost coefficient P^c3 | B112: =HLOOKUP($B$4,$A$36:$D$55,$E55,FALSE) -> -0.560
A113: 1 transformer cost coefficient [USD] c1* | B113: =$B$61 -> 2,034
A114: 2 transformer cost coefficient P^c2 [kVA] | B114: =$B$62 -> 0.48
A115: Grid specific cost [USD/km] | B115: =$B$68 -> 16,594
A119: Efficiency ratio
A120: Number of parallel turbines | B120: 1 | C120: 2 | D120: 3 | E120: 4 | F120: 5 | G120: 6
A121: Flow rate inferior limit % | B121: =HLOOKUP($B$4,$A$36:$D$55,$E39,FALSE) -> 30%
A122: Flow rate % | B122: 10% | C122: 20% | D122: 30% | E122: 40% | F122: 50% | G122: 60% | H122: 70% | I122: 80% | J122: 90% | K122: 100%
A123: Efficiency ratio | B123: =HLOOKUP($B$4,$A$36:$D$55,$E40,FALSE) -> 0.00 | C123: =HLOOKUP($B$4,$A$36:$D$55,$E41,FALSE) -> 0.00 | D123: =HLOOKUP($B$4,$A$36:$D$55,$E42,FALSE) -> 0.40 | E123: =HLOOKUP($B$4,$A$36:$D$55,$E43,FALSE) -> 0.63 | F123: =HLOOKUP($B$4,$A$36:$D$55,$E44,FALSE) -> 0.78 | G123: =HLOOKUP($B$4,$A$36:$D$55,$E45,FALSE) -> 0.88 | H123: =HLOOKUP($B$4,$A$36:$D$55,$E46,FALSE) -> 0.94 | I123: =HLOOKUP($B$4,$A$36:$D$55,$E47,FALSE) -> 0.99 | J123: =HLOOKUP($B$4,$A$36:$D$55,$E48,FALSE) -> 1.00 | K123: =HLOOKUP($B$4,$A$36:$D$55,$E49,FALSE) -> 0.99
A125: Number of parallel turbines | B125: 1.00
A126: Flow rate % | B126: 0% | C126: 1% | D126: 2% | E126: 3% | F126: 4% | G126: 5% | H126: 6% | I126: 7% | J126: 8% | K126: 9% | L126: 10% | M126: 11% | N126: 12% | O126: 13% | P126: 14% | Q126: 15% | R126: 16% | S126: 17% | T126: 18% | U126: 19% | V126: 20% | W126: 21% | X126: 22% | Y126: 23% | Z126: 24% | AA126: 25% | AB126: 26% | AC126: 27% | AD126: 28% | AE126: 29% | AF126: 30% | AG126: 31% | AH126: 32% | AI126: 33% | AJ126: 34% | AK126: 35% | AL126: 36% | AM126: 37% | AN126: 38% | AO126: 39% | AP126: 40% | AQ126: 41% | AR126: 42% | AS126: 43% | AT126: 44% | AU126: 45% | AV126: 46% | AW126: 47% | AX126: 48% | AY126: 49% | AZ126: 50% | BA126: 51% | BB126: 52% | BC126: 53% | BD126: 54% | BE126: 55% | BF126: 56% | BG126: 57% | BH126: 58% | BI126: 59% | BJ126: 60% | BK126: 61% | BL126: 62% | BM126: 63% | BN126: 64% | BO126: 65% | BP126: 66% | BQ126: 67% | BR126: 68% | BS126: 69% | BT126: 70% | BU126: 71% | BV126: 72% | BW126: 73% | BX126: 74% | BY126: 75% | BZ126: 76% | CA126: 77% | CB126: 78% | CC126: 79% | CD126: 80% | CE126: 81% | CF126: 82% | CG126: 83% | CH126: 84% | CI126: 85% | CJ126: 86% | CK126: 87% | CL126: 88% | CM126: 89% | CN126: 90% | CO126: 91% | CP126: 92% | CQ126: 93% | CR126: 94% | CS126: 95% | CT126: 96% | CU126: 97% | CV126: 98% | CW126: 99% | CX126: 100%
A127: Linearized ratio | B127: 0.00 | C127: =0.1*($L$127-$B$127)+B127 -> 0.00 | D127: 0.00 | E127: =0.1*($L$127-$B$127)+D127 -> 0.00 | F127: 0.00 | G127: 0.00 | H127: 0.00 | I127: 0.00 | J127: 0.00 | K127: 0.00 | L127: =B123 -> 0.00 | M127: =0.1*($V$127-$L$127)+L127 -> 0.00 | N127: 0.00 | O127: 0.00 | P127: 0.00 | Q127: 0.00 | R127: 0.00 | S127: 0.00 | T127: 0.00 | U127: 0.00 | V127: =C123 -> 0.00 | W127: =0.1*($AF$127-$V$127)+V127 -> 0.04 | X127: 0.08 | Y127: 0.12 | Z127: 0.16 | AA127: 0.20 | AB127: 0.24 | AC127: 0.28 | AD127: 0.32 | AE127: 0.36 | AF127: =D123 -> 0.40 | AG127: =0.1*($AP$127-$AF$127)+AF127 -> 0.43 | AH127: 0.45 | AI127: 0.47 | AJ127: 0.49 | AK127: 0.52 | AL127: 0.54 | AM127: 0.56 | AN127: 0.58 | AO127: 0.61 | AP127: =E123 -> 0.63 | AQ127: =0.1*($AZ$127-$AP$127)+AP127 -> 0.64 | AR127: 0.66 | AS127: 0.67 | AT127: 0.69 | AU127: 0.70 | AV127: 0.72 | AW127: 0.73 | AX127: 0.75 | AY127: 0.76 | AZ127: =F123 -> 0.78 | BA127: =0.1*($BJ$127-$AZ$127)+AZ127 -> 0.79 | BB127: 0.80 | BC127: 0.81 | BD127: 0.82 | BE127: 0.83 | BF127: 0.84 | BG127: 0.85 | BH127: 0.86 | BI127: 0.87 | BJ127: =G123 -> 0.88 | BK127: =0.1*($BT$127-$BJ$127)+BJ127 -> 0.89 | BL127: 0.89 | BM127: 0.90 | BN127: 0.90 | BO127: 0.91 | BP127: 0.91 | BQ127: 0.92 | BR127: 0.93 | BS127: 0.93 | BT127: =H123 -> 0.94 | BU127: =0.1*($CD$127-$BT$127)+BT127 -> 0.94 | BV127: 0.95 | BW127: 0.95 | BX127: 0.96 | BY127: 0.96 | BZ127: 0.97 | CA127: 0.97 | CB127: 0.98 | CC127: 0.98 | CD127: =I123 -> 0.99 | CE127: =0.1*($CN$127-$CD$127)+CD127 -> 0.99 | CF127: 0.99 | CG127: 0.99 | CH127: 0.99 | CI127: 0.99 | CJ127: 1.00 | CK127: 1.00 | CL127: 1.00 | CM127: 1.00 | CN127: =J123 -> 1.00 | CO127: =0.1*($CX$127-$CN$127)+CN127 -> 1.00 | CP127: 1.00 | CQ127: 1.00 | CR127: 1.00 | CS127: 0.99 | CT127: 0.99 | CU127: 0.99 | CV127: 0.99 | CW127: 0.99 | CX127: =K123 -> 0.99
A128: Efficiency ratio | B128: =IF(B126>=$B$121,B127,0) -> 0.00 | C128: 0.00 | D128: 0.00 | E128: 0.00 | F128: 0.00 | G128: 0.00 | H128: 0.00 | I128: 0.00 | J128: 0.00 | K128: 0.00 | L128: 0.00 | M128: 0.00 | N128: 0.00 | O128: 0.00 | P128: 0.00 | Q128: 0.00 | R128: 0.00 | S128: 0.00 | T128: 0.00 | U128: 0.00 | V128: 0.00 | W128: 0.00 | X128: 0.00 | Y128: 0.00 | Z128: 0.00 | AA128: 0.00 | AB128: 0.00 | AC128: 0.00 | AD128: 0.00 | AE128: 0.00 | AF128: =IF(AF126>=$B$121,AF127,0) -> 0.40 | AG128: 0.43 | AH128: =IF(AH126>=$B$121,AH127,0) -> 0.45 | AI128: 0.47 | AJ128: 0.49 | AK128: 0.52 | AL128: 0.54 | AM128: 0.56 | AN128: 0.58 | AO128: 0.61 | AP128: 0.63 | AQ128: 0.64 | AR128: 0.66 | AS128: 0.67 | AT128: 0.69 | AU128: 0.70 | AV128: 0.72 | AW128: 0.73 | AX128: 0.75 | AY128: 0.76 | AZ128: 0.78 | BA128: 0.79 | BB128: 0.80 | BC128: 0.81 | BD128: 0.82 | BE128: 0.83 | BF128: 0.84 | BG128: 0.85 | BH128: 0.86 | BI128: 0.87 | BJ128: 0.88 | BK128: 0.89 | BL128: 0.89 | BM128: 0.90 | BN128: =IF(BN126>=$B$121,BN127,0) -> 0.90 | BO128: 0.91 | BP128: 0.91 | BQ128: 0.92 | BR128: 0.93 | BS128: 0.93 | BT128: 0.94 | BU128: 0.94 | BV128: 0.95 | BW128: 0.95 | BX128: 0.96 | BY128: 0.96 | BZ128: 0.97 | CA128: 0.97 | CB128: 0.98 | CC128: 0.98 | CD128: 0.99 | CE128: 0.99 | CF128: 0.99 | CG128: 0.99 | CH128: 0.99 | CI128: 0.99 | CJ128: 1.00 | CK128: 1.00 | CL128: 1.00 | CM128: 1.00 | CN128: 1.00 | CO128: 1.00 | CP128: 1.00 | CQ128: 1.00 | CR128: 1.00 | CS128: 0.99 | CT128: =IF(CT126>=$B$121,CT127,0) -> 0.99 | CU128: 0.99 | CV128: 0.99 | CW128: 0.99 | CX128: 0.99
A130: Number of parallel turbines | B130: 2.00
A131: Flow rate % | B131: 0% | C131: 1% | D131: 2% | E131: 3% | F131: 4% | G131: 5% | H131: 6% | I131: 7% | J131: 8% | K131: 9% | L131: 10% | M131: 11% | N131: 12% | O131: 13% | P131: 14% | Q131: 15% | R131: 16% | S131: 17% | T131: 18% | U131: 19% | V131: 20% | W131: 21% | X131: 22% | Y131: 23% | Z131: 24% | AA131: 25% | AB131: 26% | AC131: 27% | AD131: 28% | AE131: 29% | AF131: 30% | AG131: 31% | AH131: 32% | AI131: 33% | AJ131: 34% | AK131: 35% | AL131: 36% | AM131: 37% | AN131: 38% | AO131: 39% | AP131: 40% | AQ131: 41% | AR131: 42% | AS131: 43% | AT131: 44% | AU131: 45% | AV131: 46% | AW131: 47% | AX131: 48% | AY131: 49% | AZ131: 50% | BA131: 51% | BB131: 52% | BC131: 53% | BD131: 54% | BE131: 55% | BF131: 56% | BG131: 57% | BH131: 58% | BI131: 59% | BJ131: 60% | BK131: 61% | BL131: 62% | BM131: 63% | BN131: 64% | BO131: 65% | BP131: 66% | BQ131: 67% | BR131: 68% | BS131: 69% | BT131: 70% | BU131: 71% | BV131: 72% | BW131: 73% | BX131: 74% | BY131: 75% | BZ131: 76% | CA131: 77% | CB131: 78% | CC131: 79% | CD131: 80% | CE131: 81% | CF131: 82% | CG131: 83% | CH131: 84% | CI131: 85% | CJ131: 86% | CK131: 87% | CL131: 88% | CM131: 89% | CN131: 90% | CO131: 91% | CP131: 92% | CQ131: 93% | CR131: 94% | CS131: 95% | CT131: 96% | CU131: 97% | CV131: 98% | CW131: 99% | CX131: 100%
A132: Equivalent efficiency ratio | B132: 0.00 | C132: =HLOOKUP((C131*$B130)/(CEILING(C131*$B130,1)),$B$126:$CX$128,3) -> 0.00 | D132: =HLOOKUP((D131*$B130)/(CEILING(D131*$B130,1)),$B$126:$CX$128,3) -> 0.00 | E132: 0.00 | F132: 0.00 | G132: 0.00 | H132: 0.00 | I132: 0.00 | J132: 0.00 | K132: 0.00 | L132: 0.00 | M132: 0.00 | N132: 0.00 | O132: 0.00 | P132: 0.00 | Q132: 0.40 | R132: 0.45 | S132: 0.49 | T132: 0.54 | U132: 0.58 | V132: =HLOOKUP((V131*$B130)/(CEILING(V131*$B130,1)),$B$126:$CX$128,3) -> 0.63 | W132: =HLOOKUP((W131*$B130)/(CEILING(W131*$B130,1)),$B$126:$CX$128,3) -> 0.66 | X132: =HLOOKUP((X131*$B130)/(CEILING(X131*$B130,1)),$B$126:$CX$128,3) -> 0.69 | Y132: =HLOOKUP((Y131*$B130)/(CEILING(Y131*$B130,1)),$B$126:$CX$128,3) -> 0.72 | Z132: =HLOOKUP((Z131*$B130)/(CEILING(Z131*$B130,1)),$B$126:$CX$128,3) -> 0.75 | AA132: =HLOOKUP((AA131*$B130)/(CEILING(AA131*$B130,1)),$B$126:$CX$128,3) -> 0.78 | AB132: =HLOOKUP((AB131*$B130)/(CEILING(AB131*$B130,1)),$B$126:$CX$128,3) -> 0.80 | AC132: =HLOOKUP((AC131*$B130)/(CEILING(AC131*$B130,1)),$B$126:$CX$128,3) -> 0.82 | AD132: =HLOOKUP((AD131*$B130)/(CEILING(AD131*$B130,1)),$B$126:$CX$128,3) -> 0.84 | AE132: =HLOOKUP((AE131*$B130)/(CEILING(AE131*$B130,1)),$B$126:$CX$128,3) -> 0.86 | AF132: =HLOOKUP((AF131*$B130)/(CEILING(AF131*$B130,1)),$B$126:$CX$128,3) -> 0.88 | AG132: =HLOOKUP((AG131*$B130)/(CEILING(AG131*$B130,1)),$B$126:$CX$128,3) -> 0.89 | AH132: =HLOOKUP((AH131*$B130)/(CEILING(AH131*$B130,1)),$B$126:$CX$128,3) -> 0.90 | AI132: =HLOOKUP((AI131*$B130)/(CEILING(AI131*$B130,1)),$B$126:$CX$128,3) -> 0.91 | AJ132: =HLOOKUP((AJ131*$B130)/(CEILING(AJ131*$B130,1)),$B$126:$CX$128,3) -> 0.93 | AK132: =HLOOKUP((AK131*$B130)/(CEILING(AK131*$B130,1)),$B$126:$CX$128,3) -> 0.94 | AL132: =HLOOKUP((AL131*$B130)/(CEILING(AL131*$B130,1)),$B$126:$CX$128,3) -> 0.95 | AM132: =HLOOKUP((AM131*$B130)/(CEILING(AM131*$B130,1)),$B$126:$CX$128,3) -> 0.96 | AN132: =HLOOKUP((AN131*$B130)/(CEILING(AN131*$B130,1)),$B$126:$CX$128,3) -> 0.97 | AO132: =HLOOKUP((AO131*$B130)/(CEILING(AO131*$B130,1)),$B$126:$CX$128,3) -> 0.98 | AP132: =HLOOKUP((AP131*$B130)/(CEILING(AP131*$B130,1)),$B$126:$CX$128,3) -> 0.99 | AQ132: =HLOOKUP((AQ131*$B130)/(CEILING(AQ131*$B130,1)),$B$126:$CX$128,3) -> 0.99 | AR132: =HLOOKUP((AR131*$B130)/(CEILING(AR131*$B130,1)),$B$126:$CX$128,3) -> 0.99 | AS132: =HLOOKUP((AS131*$B130)/(CEILING(AS131*$B130,1)),$B$126:$CX$128,3) -> 1.00 | AT132: =HLOOKUP((AT131*$B130)/(CEILING(AT131*$B130,1)),$B$126:$CX$128,3) -> 1.00 | AU132: =HLOOKUP((AU131*$B130)/(CEILING(AU131*$B130,1)),$B$126:$CX$128,3) -> 1.00 | AV132: =HLOOKUP((AV131*$B130)/(CEILING(AV131*$B130,1)),$B$126:$CX$128,3) -> 1.00 | AW132: =HLOOKUP((AW131*$B130)/(CEILING(AW131*$B130,1)),$B$126:$CX$128,3) -> 1.00 | AX132: =HLOOKUP((AX131*$B130)/(CEILING(AX131*$B130,1)),$B$126:$CX$128,3) -> 0.99 | AY132: =HLOOKUP((AY131*$B130)/(CEILING(AY131*$B130,1)),$B$126:$CX$128,3) -> 0.99 | AZ132: =HLOOKUP((AZ131*$B130)/(CEILING(AZ131*$B130,1)),$B$126:$CX$128,3) -> 0.99 | BA132: =HLOOKUP((BA131*$B130)/(CEILING(BA131*$B130,1)),$B$126:$CX$128,3) -> 0.79 | BB132: =HLOOKUP((BB131*$B130)/(CEILING(BB131*$B130,1)),$B$126:$CX$128,3) -> 0.80 | BC132: =HLOOKUP((BC131*$B130)/(CEILING(BC131*$B130,1)),$B$126:$CX$128,3) -> 0.81 | BD132: =HLOOKUP((BD131*$B130)/(CEILING(BD131*$B130,1)),$B$126:$CX$128,3) -> 0.82 | BE132: =HLOOKUP((BE131*$B130)/(CEILING(BE131*$B130,1)),$B$126:$CX$128,3) -> 0.83 | BF132: =HLOOKUP((BF131*$B130)/(CEILING(BF131*$B130,1)),$B$126:$CX$128,3) -> 0.84 | BG132: =HLOOKUP((BG131*$B130)/(CEILING(BG131*$B130,1)),$B$126:$CX$128,3) -> 0.85 | BH132: =HLOOKUP((BH131*$B130)/(CEILING(BH131*$B130,1)),$B$126:$CX$128,3) -> 0.86 | BI132: =HLOOKUP((BI131*$B130)/(CEILING(BI131*$B130,1)),$B$126:$CX$128,3) -> 0.87 | BJ132: =HLOOKUP((BJ131*$B130)/(CEILING(BJ131*$B130,1)),$B$126:$CX$128,3) -> 0.88 | BK132: =HLOOKUP((BK131*$B130)/(CEILING(BK131*$B130,1)),$B$126:$CX$128,3) -> 0.89 | BL132: =HLOOKUP((BL131*$B130)/(CEILING(BL131*$B130,1)),$B$126:$CX$128,3) -> 0.89 | BM132: =HLOOKUP((BM131*$B130)/(CEILING(BM131*$B130,1)),$B$126:$CX$128,3) -> 0.90 | BN132: =HLOOKUP((BN131*$B130)/(CEILING(BN131*$B130,1)),$B$126:$CX$128,3) -> 0.90 | BO132: =HLOOKUP((BO131*$B130)/(CEILING(BO131*$B130,1)),$B$126:$CX$128,3) -> 0.91 | BP132: =HLOOKUP((BP131*$B130)/(CEILING(BP131*$B130,1)),$B$126:$CX$128,3) -> 0.91 | BQ132: =HLOOKUP((BQ131*$B130)/(CEILING(BQ131*$B130,1)),$B$126:$CX$128,3) -> 0.92 | BR132: =HLOOKUP((BR131*$B130)/(CEILING(BR131*$B130,1)),$B$126:$CX$128,3) -> 0.93 | BS132: =HLOOKUP((BS131*$B130)/(CEILING(BS131*$B130,1)),$B$126:$CX$128,3) -> 0.93 | BT132: =HLOOKUP((BT131*$B130)/(CEILING(BT131*$B130,1)),$B$126:$CX$128,3) -> 0.94 | BU132: =HLOOKUP((BU131*$B130)/(CEILING(BU131*$B130,1)),$B$126:$CX$128,3) -> 0.94 | BV132: =HLOOKUP((BV131*$B130)/(CEILING(BV131*$B130,1)),$B$126:$CX$128,3) -> 0.95 | BW132: =HLOOKUP((BW131*$B130)/(CEILING(BW131*$B130,1)),$B$126:$CX$128,3) -> 0.95 | BX132: =HLOOKUP((BX131*$B130)/(CEILING(BX131*$B130,1)),$B$126:$CX$128,3) -> 0.96 | BY132: =HLOOKUP((BY131*$B130)/(CEILING(BY131*$B130,1)),$B$126:$CX$128,3) -> 0.96 | BZ132: =HLOOKUP((BZ131*$B130)/(CEILING(BZ131*$B130,1)),$B$126:$CX$128,3) -> 0.97 | CA132: =HLOOKUP((CA131*$B130)/(CEILING(CA131*$B130,1)),$B$126:$CX$128,3) -> 0.97 | CB132: =HLOOKUP((CB131*$B130)/(CEILING(CB131*$B130,1)),$B$126:$CX$128,3) -> 0.98 | CC132: =HLOOKUP((CC131*$B130)/(CEILING(CC131*$B130,1)),$B$126:$CX$128,3) -> 0.98 | CD132: =HLOOKUP((CD131*$B130)/(CEILING(CD131*$B130,1)),$B$126:$CX$128,3) -> 0.99 | CE132: =HLOOKUP((CE131*$B130)/(CEILING(CE131*$B130,1)),$B$126:$CX$128,3) -> 0.99 | CF132: =HLOOKUP((CF131*$B130)/(CEILING(CF131*$B130,1)),$B$126:$CX$128,3) -> 0.99 | CG132: =HLOOKUP((CG131*$B130)/(CEILING(CG131*$B130,1)),$B$126:$CX$128,3) -> 0.99 | CH132: =HLOOKUP((CH131*$B130)/(CEILING(CH131*$B130,1)),$B$126:$CX$128,3) -> 0.99 | CI132: =HLOOKUP((CI131*$B130)/(CEILING(CI131*$B130,1)),$B$126:$CX$128,3) -> 0.99 | CJ132: =HLOOKUP((CJ131*$B130)/(CEILING(CJ131*$B130,1)),$B$126:$CX$128,3) -> 1.00 | CK132: =HLOOKUP((CK131*$B130)/(CEILING(CK131*$B130,1)),$B$126:$CX$128,3) -> 1.00 | CL132: =HLOOKUP((CL131*$B130)/(CEILING(CL131*$B130,1)),$B$126:$CX$128,3) -> 1.00 | CM132: =HLOOKUP((CM131*$B130)/(CEILING(CM131*$B130,1)),$B$126:$CX$128,3) -> 1.00 | CN132: =HLOOKUP((CN131*$B130)/(CEILING(CN131*$B130,1)),$B$126:$CX$128,3) -> 1.00 | CO132: =HLOOKUP((CO131*$B130)/(CEILING(CO131*$B130,1)),$B$126:$CX$128,3) -> 1.00 | CP132: =HLOOKUP((CP131*$B130)/(CEILING(CP131*$B130,1)),$B$126:$CX$128,3) -> 1.00 | CQ132: =HLOOKUP((CQ131*$B130)/(CEILING(CQ131*$B130,1)),$B$126:$CX$128,3) -> 1.00 | CR132: =HLOOKUP((CR131*$B130)/(CEILING(CR131*$B130,1)),$B$126:$CX$128,3) -> 1.00 | CS132: =HLOOKUP((CS131*$B130)/(CEILING(CS131*$B130,1)),$B$126:$CX$128,3) -> 0.99 | CT132: =HLOOKUP((CT131*$B130)/(CEILING(CT131*$B130,1)),$B$126:$CX$128,3) -> 0.99 | CU132: =HLOOKUP((CU131*$B130)/(CEILING(CU131*$B130,1)),$B$126:$CX$128,3) -> 0.99 | CV132: =HLOOKUP((CV131*$B130)/(CEILING(CV131*$B130,1)),$B$126:$CX$128,3) -> 0.99 | CW132: =HLOOKUP((CW131*$B130)/(CEILING(CW131*$B130,1)),$B$126:$CX$128,3) -> 0.99 | CX132: 0.99
A134: Number of parallel turbines | B134: 3.00
A135: Flow rate % | B135: 0% | C135: 1% | D135: 2% | E135: 3% | F135: 4% | G135: 5% | H135: 6% | I135: 7% | J135: 8% | K135: 9% | L135: 10% | M135: 11% | N135: 12% | O135: 13% | P135: 14% | Q135: 15% | R135: 16% | S135: 17% | T135: 18% | U135: 19% | V135: 20% | W135: 21% | X135: 22% | Y135: 23% | Z135: 24% | AA135: 25% | AB135: 26% | AC135: 27% | AD135: 28% | AE135: 29% | AF135: 30% | AG135: 31% | AH135: 32% | AI135: 33% | AJ135: 34% | AK135: 35% | AL135: 36% | AM135: 37% | AN135: 38% | AO135: 39% | AP135: 40% | AQ135: 41% | AR135: 42% | AS135: 43% | AT135: 44% | AU135: 45% | AV135: 46% | AW135: 47% | AX135: 48% | AY135: 49% | AZ135: 50% | BA135: 51% | BB135: 52% | BC135: 53% | BD135: 54% | BE135: 55% | BF135: 56% | BG135: 57% | BH135: 58% | BI135: 59% | BJ135: 60% | BK135: 61% | BL135: 62% | BM135: 63% | BN135: 64% | BO135: 65% | BP135: 66% | BQ135: 67% | BR135: 68% | BS135: 69% | BT135: 70% | BU135: 71% | BV135: 72% | BW135: 73% | BX135: 74% | BY135: 75% | BZ135: 76% | CA135: 77% | CB135: 78% | CC135: 79% | CD135: 80% | CE135: 81% | CF135: 82% | CG135: 83% | CH135: 84% | CI135: 85% | CJ135: 86% | CK135: 87% | CL135: 88% | CM135: 89% | CN135: 90% | CO135: 91% | CP135: 92% | CQ135: 93% | CR135: 94% | CS135: 95% | CT135: 96% | CU135: 97% | CV135: 98% | CW135: 99% | CX135: 100%
A136: Equivalent efficiency ratio | B136: 0.00 | C136: =HLOOKUP((C135*$B134)/(CEILING(C135*$B134,1)),$B$126:$CX$128,3) -> 0.00 | D136: =HLOOKUP((D135*$B134)/(CEILING(D135*$B134,1)),$B$126:$CX$128,3) -> 0.00 | E136: =HLOOKUP((E135*$B134)/(CEILING(E135*$B134,1)),$B$126:$CX$128,3) -> 0.00 | F136: =HLOOKUP((F135*$B134)/(CEILING(F135*$B134,1)),$B$126:$CX$128,3) -> 0.00 | G136: 0.00 | H136: 0.00 | I136: 0.00 | J136: 0.00 | K136: 0.00 | L136: 0.40 | M136: 0.47 | N136: 0.54 | O136: 0.61 | P136: 0.66 | Q136: 0.69 | R136: 0.75 | S136: 0.79 | T136: 0.82 | U136: 0.85 | V136: 0.88 | W136: 0.90 | X136: 0.91 | Y136: 0.93 | Z136: 0.95 | AA136: 0.96 | AB136: 0.98 | AC136: 0.99 | AD136: =HLOOKUP((AD135*$B134)/(CEILING(AD135*$B134,1)),$B$126:$CX$128,3) -> 0.99 | AE136: =HLOOKUP((AE135*$B134)/(CEILING(AE135*$B134,1)),$B$126:$CX$128,3) -> 1.00 | AF136: =HLOOKUP((AF135*$B134)/(CEILING(AF135*$B134,1)),$B$126:$CX$128,3) -> 1.00 | AG136: =HLOOKUP((AG135*$B134)/(CEILING(AG135*$B134,1)),$B$126:$CX$128,3) -> 1.00 | AH136: =HLOOKUP((AH135*$B134)/(CEILING(AH135*$B134,1)),$B$126:$CX$128,3) -> 0.99 | AI136: =HLOOKUP((AI135*$B134)/(CEILING(AI135*$B134,1)),$B$126:$CX$128,3) -> 0.99 | AJ136: =HLOOKUP((AJ135*$B134)/(CEILING(AJ135*$B134,1)),$B$126:$CX$128,3) -> 0.79 | AK136: =HLOOKUP((AK135*$B134)/(CEILING(AK135*$B134,1)),$B$126:$CX$128,3) -> 0.80 | AL136: =HLOOKUP((AL135*$B134)/(CEILING(AL135*$B134,1)),$B$126:$CX$128,3) -> 0.82 | AM136: =HLOOKUP((AM135*$B134)/(CEILING(AM135*$B134,1)),$B$126:$CX$128,3) -> 0.83 | AN136: =HLOOKUP((AN135*$B134)/(CEILING(AN135*$B134,1)),$B$126:$CX$128,3) -> 0.85 | AO136: =HLOOKUP((AO135*$B134)/(CEILING(AO135*$B134,1)),$B$126:$CX$128,3) -> 0.86 | AP136: =HLOOKUP((AP135*$B134)/(CEILING(AP135*$B134,1)),$B$126:$CX$128,3) -> 0.88 | AQ136: =HLOOKUP((AQ135*$B134)/(CEILING(AQ135*$B134,1)),$B$126:$CX$128,3) -> 0.89 | AR136: =HLOOKUP((AR135*$B134)/(CEILING(AR135*$B134,1)),$B$126:$CX$128,3) -> 0.90 | AS136: =HLOOKUP((AS135*$B134)/(CEILING(AS135*$B134,1)),$B$126:$CX$128,3) -> 0.90 | AT136: =HLOOKUP((AT135*$B134)/(CEILING(AT135*$B134,1)),$B$126:$CX$128,3) -> 0.91 | AU136: =HLOOKUP((AU135*$B134)/(CEILING(AU135*$B134,1)),$B$126:$CX$128,3) -> 0.92 | AV136: =HLOOKUP((AV135*$B134)/(CEILING(AV135*$B134,1)),$B$126:$CX$128,3) -> 0.93 | AW136: =HLOOKUP((AW135*$B134)/(CEILING(AW135*$B134,1)),$B$126:$CX$128,3) -> 0.94 | AX136: =HLOOKUP((AX135*$B134)/(CEILING(AX135*$B134,1)),$B$126:$CX$128,3) -> 0.95 | AY136: =HLOOKUP((AY135*$B134)/(CEILING(AY135*$B134,1)),$B$126:$CX$128,3) -> 0.95 | AZ136: =HLOOKUP((AZ135*$B134)/(CEILING(AZ135*$B134,1)),$B$126:$CX$128,3) -> 0.96 | BA136: =HLOOKUP((BA135*$B134)/(CEILING(BA135*$B134,1)),$B$126:$CX$128,3) -> 0.97 | BB136: =HLOOKUP((BB135*$B134)/(CEILING(BB135*$B134,1)),$B$126:$CX$128,3) -> 0.98 | BC136: 0.98 | BD136: =HLOOKUP((BD135*$B134)/(CEILING(BD135*$B134,1)),$B$126:$CX$128,3) -> 0.99 | BE136: =HLOOKUP((BE135*$B134)/(CEILING(BE135*$B134,1)),$B$126:$CX$128,3) -> 0.99 | BF136: =HLOOKUP((BF135*$B134)/(CEILING(BF135*$B134,1)),$B$126:$CX$128,3) -> 0.99 | BG136: =HLOOKUP((BG135*$B134)/(CEILING(BG135*$B134,1)),$B$126:$CX$128,3) -> 0.99 | BH136: =HLOOKUP((BH135*$B134)/(CEILING(BH135*$B134,1)),$B$126:$CX$128,3) -> 1.00 | BI136: =HLOOKUP((BI135*$B134)/(CEILING(BI135*$B134,1)),$B$126:$CX$128,3) -> 1.00 | BJ136: =HLOOKUP((BJ135*$B134)/(CEILING(BJ135*$B134,1)),$B$126:$CX$128,3) -> 1.00 | BK136: =HLOOKUP((BK135*$B134)/(CEILING(BK135*$B134,1)),$B$126:$CX$128,3) -> 1.00 | BL136: =HLOOKUP((BL135*$B134)/(CEILING(BL135*$B134,1)),$B$126:$CX$128,3) -> 1.00 | BM136: =HLOOKUP((BM135*$B134)/(CEILING(BM135*$B134,1)),$B$126:$CX$128,3) -> 1.00 | BN136: =HLOOKUP((BN135*$B134)/(CEILING(BN135*$B134,1)),$B$126:$CX$128,3) -> 0.99 | BO136: =HLOOKUP((BO135*$B134)/(CEILING(BO135*$B134,1)),$B$126:$CX$128,3) -> 0.99 | BP136: =HLOOKUP((BP135*$B134)/(CEILING(BP135*$B134,1)),$B$126:$CX$128,3) -> 0.99 | BQ136: =HLOOKUP((BQ135*$B134)/(CEILING(BQ135*$B134,1)),$B$126:$CX$128,3) -> 0.92 | BR136: =HLOOKUP((BR135*$B134)/(CEILING(BR135*$B134,1)),$B$126:$CX$128,3) -> 0.93 | BS136: =HLOOKUP((BS135*$B134)/(CEILING(BS135*$B134,1)),$B$126:$CX$128,3) -> 0.93 | BT136: =HLOOKUP((BT135*$B134)/(CEILING(BT135*$B134,1)),$B$126:$CX$128,3) -> 0.93 | BU136: =HLOOKUP((BU135*$B134)/(CEILING(BU135*$B134,1)),$B$126:$CX$128,3) -> 0.94 | BV136: =HLOOKUP((BV135*$B134)/(CEILING(BV135*$B134,1)),$B$126:$CX$128,3) -> 0.95 | BW136: =HLOOKUP((BW135*$B134)/(CEILING(BW135*$B134,1)),$B$126:$CX$128,3) -> 0.95 | BX136: =HLOOKUP((BX135*$B134)/(CEILING(BX135*$B134,1)),$B$126:$CX$128,3) -> 0.95 | BY136: =HLOOKUP((BY135*$B134)/(CEILING(BY135*$B134,1)),$B$126:$CX$128,3) -> 0.96 | BZ136: =HLOOKUP((BZ135*$B134)/(CEILING(BZ135*$B134,1)),$B$126:$CX$128,3) -> 0.97 | CA136: =HLOOKUP((CA135*$B134)/(CEILING(CA135*$B134,1)),$B$126:$CX$128,3) -> 0.97 | CB136: =HLOOKUP((CB135*$B134)/(CEILING(CB135*$B134,1)),$B$126:$CX$128,3) -> 0.97 | CC136: 0.98 | CD136: =HLOOKUP((CD135*$B134)/(CEILING(CD135*$B134,1)),$B$126:$CX$128,3) -> 0.99 | CE136: =HLOOKUP((CE135*$B134)/(CEILING(CE135*$B134,1)),$B$126:$CX$128,3) -> 0.99 | CF136: =HLOOKUP((CF135*$B134)/(CEILING(CF135*$B134,1)),$B$126:$CX$128,3) -> 0.99 | CG136: =HLOOKUP((CG135*$B134)/(CEILING(CG135*$B134,1)),$B$126:$CX$128,3) -> 0.99 | CH136: =HLOOKUP((CH135*$B134)/(CEILING(CH135*$B134,1)),$B$126:$CX$128,3) -> 0.99 | CI136: =HLOOKUP((CI135*$B134)/(CEILING(CI135*$B134,1)),$B$126:$CX$128,3) -> 0.99 | CJ136: =HLOOKUP((CJ135*$B134)/(CEILING(CJ135*$B134,1)),$B$126:$CX$128,3) -> 1.00 | CK136: =HLOOKUP((CK135*$B134)/(CEILING(CK135*$B134,1)),$B$126:$CX$128,3) -> 1.00 | CL136: =HLOOKUP((CL135*$B134)/(CEILING(CL135*$B134,1)),$B$126:$CX$128,3) -> 1.00 | CM136: =HLOOKUP((CM135*$B134)/(CEILING(CM135*$B134,1)),$B$126:$CX$128,3) -> 1.00 | CN136: =HLOOKUP((CN135*$B134)/(CEILING(CN135*$B134,1)),$B$126:$CX$128,3) -> 1.00 | CO136: =HLOOKUP((CO135*$B134)/(CEILING(CO135*$B134,1)),$B$126:$CX$128,3) -> 1.00 | CP136: =HLOOKUP((CP135*$B134)/(CEILING(CP135*$B134,1)),$B$126:$CX$128,3) -> 1.00 | CQ136: =HLOOKUP((CQ135*$B134)/(CEILING(CQ135*$B134,1)),$B$126:$CX$128,3) -> 1.00 | CR136: =HLOOKUP((CR135*$B134)/(CEILING(CR135*$B134,1)),$B$126:$CX$128,3) -> 1.00 | CS136: =HLOOKUP((CS135*$B134)/(CEILING(CS135*$B134,1)),$B$126:$CX$128,3) -> 1.00 | CT136: =HLOOKUP((CT135*$B134)/(CEILING(CT135*$B134,1)),$B$126:$CX$128,3) -> 0.99 | CU136: =HLOOKUP((CU135*$B134)/(CEILING(CU135*$B134,1)),$B$126:$CX$128,3) -> 0.99 | CV136: =HLOOKUP((CV135*$B134)/(CEILING(CV135*$B134,1)),$B$126:$CX$128,3) -> 0.99 | CW136: =HLOOKUP((CW135*$B134)/(CEILING(CW135*$B134,1)),$B$126:$CX$128,3) -> 0.99 | CX136: =HLOOKUP((CX135*$B134)/(CEILING(CX135*$B134,1)),$B$126:$CX$128,3) -> 0.99
A138: Number of parallel turbines | B138: 4.00
A139: Flow rate % | B139: 0% | C139: 1% | D139: 2% | E139: 3% | F139: 4% | G139: 5% | H139: 6% | I139: 7% | J139: 8% | K139: 9% | L139: 10% | M139: 11% | N139: 12% | O139: 13% | P139: 14% | Q139: 15% | R139: 16% | S139: 17% | T139: 18% | U139: 19% | V139: 20% | W139: 21% | X139: 22% | Y139: 23% | Z139: 24% | AA139: 25% | AB139: 26% | AC139: 27% | AD139: 28% | AE139: 29% | AF139: 30% | AG139: 31% | AH139: 32% | AI139: 33% | AJ139: 34% | AK139: 35% | AL139: 36% | AM139: 37% | AN139: 38% | AO139: 39% | AP139: 40% | AQ139: 41% | AR139: 42% | AS139: 43% | AT139: 44% | AU139: 45% | AV139: 46% | AW139: 47% | AX139: 48% | AY139: 49% | AZ139: 50% | BA139: 51% | BB139: 52% | BC139: 53% | BD139: 54% | BE139: 55% | BF139: 56% | BG139: 57% | BH139: 58% | BI139: 59% | BJ139: 60% | BK139: 61% | BL139: 62% | BM139: 63% | BN139: 64% | BO139: 65% | BP139: 66% | BQ139: 67% | BR139: 68% | BS139: 69% | BT139: 70% | BU139: 71% | BV139: 72% | BW139: 73% | BX139: 74% | BY139: 75% | BZ139: 76% | CA139: 77% | CB139: 78% | CC139: 79% | CD139: 80% | CE139: 81% | CF139: 82% | CG139: 83% | CH139: 84% | CI139: 85% | CJ139: 86% | CK139: 87% | CL139: 88% | CM139: 89% | CN139: 90% | CO139: 91% | CP139: 92% | CQ139: 93% | CR139: 94% | CS139: 95% | CT139: 96% | CU139: 97% | CV139: 98% | CW139: 99% | CX139: 100%
A140: Equivalent efficiency ratio | B140: 0.00 | C140: =HLOOKUP((C139*$B138)/(CEILING(C139*$B138,1)),$B$126:$CX$128,3) -> 0.00 | D140: =HLOOKUP((D139*$B138)/(CEILING(D139*$B138,1)),$B$126:$CX$128,3) -> 0.00 | E140: =HLOOKUP((E139*$B138)/(CEILING(E139*$B138,1)),$B$126:$CX$128,3) -> 0.00 | F140: 0.00 | G140: 0.00 | H140: 0.00 | I140: 0.00 | J140: 0.45 | K140: 0.54 | L140: 0.63 | M140: 0.69 | N140: 0.75 | O140: 0.80 | P140: 0.84 | Q140: 0.88 | R140: 0.90 | S140: 0.93 | T140: 0.95 | U140: 0.97 | V140: 0.99 | W140: 0.99 | X140: 1.00 | Y140: 1.00 | Z140: 0.99 | AA140: 0.99 | AB140: 0.80 | AC140: 0.82 | AD140: 0.84 | AE140: 0.86 | AF140: 0.88 | AG140: 0.89 | AH140: 0.90 | AI140: 0.91 | AJ140: 0.93 | AK140: 0.94 | AL140: 0.95 | AM140: 0.96 | AN140: 0.97 | AO140: 0.98 | AP140: 0.99 | AQ140: 0.99 | AR140: 0.99 | AS140: 1.00 | AT140: 1.00 | AU140: 1.00 | AV140: 1.00 | AW140: 1.00 | AX140: 0.99 | AY140: 0.99 | AZ140: 0.99 | BA140: 0.93 | BB140: 0.93 | BC140: 0.94 | BD140: 0.95 | BE140: 0.95 | BF140: 0.96 | BG140: 0.96 | BH140: 0.97 | BI140: 0.98 | BJ140: 0.98 | BK140: 0.99 | BL140: 0.99 | BM140: 0.99 | BN140: 0.99 | BO140: 1.00 | BP140: =HLOOKUP((BP139*$B138)/(CEILING(BP139*$B138,1)),$B$126:$CX$128,3) -> 1.00 | BQ140: 1.00 | BR140: 1.00 | BS140: 1.00 | BT140: 1.00 | BU140: 1.00 | BV140: 0.99 | BW140: 0.99 | BX140: 0.99 | BY140: 0.99 | BZ140: 0.97 | CA140: 0.97 | CB140: 0.98 | CC140: 0.98 | CD140: 0.99 | CE140: 0.99 | CF140: 0.99 | CG140: 0.99 | CH140: 0.99 | CI140: 0.99 | CJ140: 1.00 | CK140: 1.00 | CL140: 1.00 | CM140: 1.00 | CN140: 1.00 | CO140: 1.00 | CP140: 1.00 | CQ140: 1.00 | CR140: 1.00 | CS140: 0.99 | CT140: 0.99 | CU140: 0.99 | CV140: 0.99 | CW140: 0.99 | CX140: 0.99
A142: Number of parallel turbines | B142: 5.00
A143: Flow rate % | B143: 0% | C143: 1% | D143: 2% | E143: 3% | F143: 4% | G143: 5% | H143: 6% | I143: 7% | J143: 8% | K143: 9% | L143: 10% | M143: 11% | N143: 12% | O143: 13% | P143: 14% | Q143: 15% | R143: 16% | S143: 17% | T143: 18% | U143: 19% | V143: 20% | W143: 21% | X143: 22% | Y143: 23% | Z143: 24% | AA143: 25% | AB143: 26% | AC143: 27% | AD143: 28% | AE143: 29% | AF143: 30% | AG143: 31% | AH143: 32% | AI143: 33% | AJ143: 34% | AK143: 35% | AL143: 36% | AM143: 37% | AN143: 38% | AO143: 39% | AP143: 40% | AQ143: 41% | AR143: 42% | AS143: 43% | AT143: 44% | AU143: 45% | AV143: 46% | AW143: 47% | AX143: 48% | AY143: 49% | AZ143: 50% | BA143: 51% | BB143: 52% | BC143: 53% | BD143: 54% | BE143: 55% | BF143: 56% | BG143: 57% | BH143: 58% | BI143: 59% | BJ143: 60% | BK143: 61% | BL143: 62% | BM143: 63% | BN143: 64% | BO143: 65% | BP143: 66% | BQ143: 67% | BR143: 68% | BS143: 69% | BT143: 70% | BU143: 71% | BV143: 72% | BW143: 73% | BX143: 74% | BY143: 75% | BZ143: 76% | CA143: 77% | CB143: 78% | CC143: 79% | CD143: 80% | CE143: 81% | CF143: 82% | CG143: 83% | CH143: 84% | CI143: 85% | CJ143: 86% | CK143: 87% | CL143: 88% | CM143: 89% | CN143: 90% | CO143: 91% | CP143: 92% | CQ143: 93% | CR143: 94% | CS143: 95% | CT143: 96% | CU143: 97% | CV143: 98% | CW143: 99% | CX143: 100%
A144: Equivalent efficiency ratio | B144: 0.00 | C144: =HLOOKUP((C143*$B142)/(CEILING(C143*$B142,1)),$B$126:$CX$128,3) -> 0.00 | D144: =HLOOKUP((D143*$B142)/(CEILING(D143*$B142,1)),$B$126:$CX$128,3) -> 0.00 | E144: =HLOOKUP((E143*$B142)/(CEILING(E143*$B142,1)),$B$126:$CX$128,3) -> 0.00 | F144: 0.00 | G144: 0.00 | H144: 0.40 | I144: 0.52 | J144: 0.63 | K144: 0.69 | L144: 0.78 | M144: 0.83 | N144: 0.88 | O144: 0.91 | P144: 0.94 | Q144: 0.96 | R144: 0.99 | S144: 0.99 | T144: 1.00 | U144: 0.99 | V144: 0.99 | W144: 0.80 | X144: 0.83 | Y144: 0.85 | Z144: 0.88 | AA144: 0.89 | AB144: 0.91 | AC144: 0.92 | AD144: 0.94 | AE144: 0.95 | AF144: 0.96 | AG144: 0.97 | AH144: 0.99 | AI144: 0.99 | AJ144: 0.99 | AK144: 1.00 | AL144: 1.00 | AM144: 1.00 | AN144: 0.99 | AO144: 0.99 | AP144: 0.99 | AQ144: 0.93 | AR144: 0.94 | AS144: 0.94 | AT144: 0.95 | AU144: 0.96 | AV144: 0.97 | AW144: 0.98 | AX144: 0.98 | AY144: 0.99 | AZ144: 0.99 | BA144: 0.99 | BB144: 1.00 | BC144: 1.00 | BD144: 1.00 | BE144: 1.00 | BF144: 1.00 | BG144: 1.00 | BH144: 0.99 | BI144: 0.99 | BJ144: 0.99 | BK144: 0.97 | BL144: 0.97 | BM144: 0.98 | BN144: 0.99 | BO144: 0.99 | BP144: =HLOOKUP((BP143*$B142)/(CEILING(BP143*$B142,1)),$B$126:$CX$128,3) -> 0.99 | BQ144: 0.99 | BR144: 0.99 | BS144: 1.00 | BT144: 1.00 | BU144: 1.00 | BV144: 1.00 | BW144: 1.00 | BX144: 1.00 | BY144: 1.00 | BZ144: 0.99 | CA144: 0.99 | CB144: 0.99 | CC144: 0.99 | CD144: 0.99 | CE144: 0.99 | CF144: 0.99 | CG144: 0.99 | CH144: 0.99 | CI144: 0.99 | CJ144: 1.00 | CK144: 1.00 | CL144: 1.00 | CM144: 1.00 | CN144: 1.00 | CO144: 1.00 | CP144: 1.00 | CQ144: 1.00 | CR144: 1.00 | CS144: 0.99 | CT144: 0.99 | CU144: 0.99 | CV144: 0.99 | CW144: 0.99 | CX144: 0.99
A146: Number of parallel turbines | B146: 6.00
A147: Flow rate % | B147: 0% | C147: 1% | D147: 2% | E147: 3% | F147: 4% | G147: 5% | H147: 6% | I147: 7% | J147: 8% | K147: 9% | L147: 10% | M147: 11% | N147: 12% | O147: 13% | P147: 14% | Q147: 15% | R147: 16% | S147: 17% | T147: 18% | U147: 19% | V147: 20% | W147: 21% | X147: 22% | Y147: 23% | Z147: 24% | AA147: 25% | AB147: 26% | AC147: 27% | AD147: 28% | AE147: 29% | AF147: 30% | AG147: 31% | AH147: 32% | AI147: 33% | AJ147: 34% | AK147: 35% | AL147: 36% | AM147: 37% | AN147: 38% | AO147: 39% | AP147: 40% | AQ147: 41% | AR147: 42% | AS147: 43% | AT147: 44% | AU147: 45% | AV147: 46% | AW147: 47% | AX147: 48% | AY147: 49% | AZ147: 50% | BA147: 51% | BB147: 52% | BC147: 53% | BD147: 54% | BE147: 55% | BF147: 56% | BG147: 57% | BH147: 58% | BI147: 59% | BJ147: 60% | BK147: 61% | BL147: 62% | BM147: 63% | BN147: 64% | BO147: 65% | BP147: 66% | BQ147: 67% | BR147: 68% | BS147: 69% | BT147: 70% | BU147: 71% | BV147: 72% | BW147: 73% | BX147: 74% | BY147: 75% | BZ147: 76% | CA147: 77% | CB147: 78% | CC147: 79% | CD147: 80% | CE147: 81% | CF147: 82% | CG147: 83% | CH147: 84% | CI147: 85% | CJ147: 86% | CK147: 87% | CL147: 88% | CM147: 89% | CN147: 90% | CO147: 91% | CP147: 92% | CQ147: 93% | CR147: 94% | CS147: 95% | CT147: 96% | CU147: 97% | CV147: 98% | CW147: 99% | CX147: 100%
A148: Equivalent efficiency ratio | B148: 0.00 | C148: =HLOOKUP((C147*$B146)/(CEILING(C147*$B146,1)),$B$126:$CX$128,3) -> 0.00 | D148: =HLOOKUP((D147*$B146)/(CEILING(D147*$B146,1)),$B$126:$CX$128,3) -> 0.00 | E148: 0.00 | F148: 0.00 | G148: 0.40 | H148: 0.54 | I148: 0.66 | J148: 0.75 | K148: 0.82 | L148: 0.88 | M148: 0.91 | N148: 0.95 | O148: 0.98 | P148: 0.99 | Q148: 1.00 | R148: 0.99 | S148: 0.79 | T148: 0.82 | U148: 0.85 | V148: 0.88 | W148: 0.90 | X148: 0.91 | Y148: 0.93 | Z148: 0.95 | AA148: 0.96 | AB148: 0.98 | AC148: 0.99 | AD148: 0.99 | AE148: 1.00 | AF148: 1.00 | AG148: 1.00 | AH148: 0.99 | AI148: 0.99 | AJ148: 0.93 | AK148: 0.93 | AL148: 0.95 | AM148: 0.95 | AN148: 0.97 | AO148: 0.97 | AP148: 0.99 | AQ148: 0.99 | AR148: 0.99 | AS148: 1.00 | AT148: 1.00 | AU148: 1.00 | AV148: 1.00 | AW148: 1.00 | AX148: 0.99 | AY148: 0.99 | AZ148: 0.99 | BA148: 0.97 | BB148: 0.98 | BC148: 0.98 | BD148: 0.99 | BE148: 0.99 | BF148: 0.99 | BG148: 0.99 | BH148: 1.00 | BI148: 1.00 | BJ148: 1.00 | BK148: 1.00 | BL148: 1.00 | BM148: 1.00 | BN148: 0.99 | BO148: 0.99 | BP148: =HLOOKUP((BP147*$B146)/(CEILING(BP147*$B146,1)),$B$126:$CX$128,3) -> 0.99 | BQ148: 0.99 | BR148: 0.99 | BS148: 0.99 | BT148: 0.99 | BU148: 0.99 | BV148: 1.00 | BW148: 1.00 | BX148: 1.00 | BY148: 1.00 | BZ148: 1.00 | CA148: 1.00 | CB148: 1.00 | CC148: 1.00 | CD148: 0.99 | CE148: 0.99 | CF148: 0.99 | CG148: 0.99 | CH148: 0.99 | CI148: 0.99 | CJ148: 1.00 | CK148: 1.00 | CL148: 1.00 | CM148: 1.00 | CN148: 1.00 | CO148: 1.00 | CP148: 1.00 | CQ148: 1.00 | CR148: 1.00 | CS148: 1.00 | CT148: 0.99 | CU148: 0.99 | CV148: 0.99 | CW148: 0.99 | CX148: 0.99
A150: Equivalent efficiency ratio
A151: Number of parallel turbines | B151: =$B$7 -> 2.00
A152: Flow rate % | B152: 0% | C152: 1% | D152: 2% | E152: 3% | F152: 4% | G152: 5% | H152: 6% | I152: 7% | J152: 8% | K152: 9% | L152: 10% | M152: 11% | N152: 12% | O152: 13% | P152: 14% | Q152: 15% | R152: 16% | S152: 17% | T152: 18% | U152: 19% | V152: 20% | W152: 21% | X152: 22% | Y152: 23% | Z152: 24% | AA152: 25% | AB152: 26% | AC152: 27% | AD152: 28% | AE152: 29% | AF152: 30% | AG152: 31% | AH152: 32% | AI152: 33% | AJ152: 34% | AK152: 35% | AL152: 36% | AM152: 37% | AN152: 38% | AO152: 39% | AP152: 40% | AQ152: 41% | AR152: 42% | AS152: 43% | AT152: 44% | AU152: 45% | AV152: 46% | AW152: 47% | AX152: 48% | AY152: 49% | AZ152: 50% | BA152: 51% | BB152: 52% | BC152: 53% | BD152: 54% | BE152: 55% | BF152: 56% | BG152: 57% | BH152: 58% | BI152: 59% | BJ152: 60% | BK152: 61% | BL152: 62% | BM152: 63% | BN152: 64% | BO152: 65% | BP152: 66% | BQ152: 67% | BR152: 68% | BS152: 69% | BT152: 70% | BU152: 71% | BV152: 72% | BW152: 73% | BX152: 74% | BY152: 75% | BZ152: 76% | CA152: 77% | CB152: 78% | CC152: 79% | CD152: 80% | CE152: 81% | CF152: 82% | CG152: 83% | CH152: 84% | CI152: 85% | CJ152: 86% | CK152: 87% | CL152: 88% | CM152: 89% | CN152: 90% | CO152: 91% | CP152: 92% | CQ152: 93% | CR152: 94% | CS152: 95% | CT152: 96% | CU152: 97% | CV152: 98% | CW152: 99% | CX152: 100%
A153: Equivalent efficiency ratio (Eta/EtaMax) | B153: =IF($B$151=$B$125,B128,0)+IF($B$151=$B$130,B132,0)+IF($B$151=$B$134,B136,0)+IF($B$151=$B$138,B140,0)+IF($B$151=$B$142,B144,0)+IF($B$151=$B$146,B148,0) -> 0.00 | C153: =IF($B$151=$B$125,C128,0)+IF($B$151=$B$130,C132,0)+IF($B$151=$B$134,C136,0)+IF($B$151=$B$138,C140,0)+IF($B$151=$B$142,C144,0)+IF($B$151=$B$146,C148,0) -> 0.00 | D153: =IF($B$151=$B$125,D128,0)+IF($B$151=$B$130,D132,0)+IF($B$151=$B$134,D136,0)+IF($B$151=$B$138,D140,0)+IF($B$151=$B$142,D144,0)+IF($B$151=$B$146,D148,0) -> 0.00 | E153: 0.00 | F153: 0.00 | G153: 0.00 | H153: 0.00 | I153: 0.00 | J153: 0.00 | K153: 0.00 | L153: 0.00 | M153: 0.00 | N153: 0.00 | O153: 0.00 | P153: 0.00 | Q153: 0.40 | R153: 0.45 | S153: 0.49 | T153: 0.54 | U153: 0.58 | V153: 0.63 | W153: 0.66 | X153: 0.69 | Y153: 0.72 | Z153: 0.75 | AA153: 0.78 | AB153: 0.80 | AC153: 0.82 | AD153: 0.84 | AE153: 0.86 | AF153: 0.88 | AG153: 0.89 | AH153: =IF($B$151=$B$125,AH128,0)+IF($B$151=$B$130,AH132,0)+IF($B$151=$B$134,AH136,0)+IF($B$151=$B$138,AH140,0)+IF($B$151=$B$142,AH144,0)+IF($B$151=$B$146,AH148,0) -> 0.90 | AI153: 0.91 | AJ153: 0.93 | AK153: 0.94 | AL153: 0.95 | AM153: 0.96 | AN153: 0.97 | AO153: 0.98 | AP153: 0.99 | AQ153: 0.99 | AR153: 0.99 | AS153: 1.00 | AT153: 1.00 | AU153: 1.00 | AV153: 1.00 | AW153: 1.00 | AX153: 0.99 | AY153: 0.99 | AZ153: 0.99 | BA153: 0.79 | BB153: 0.80 | BC153: 0.81 | BD153: 0.82 | BE153: 0.83 | BF153: 0.84 | BG153: 0.85 | BH153: 0.86 | BI153: 0.87 | BJ153: 0.88 | BK153: 0.89 | BL153: 0.89 | BM153: 0.90 | BN153: =IF($B$151=$B$125,BN128,0)+IF($B$151=$B$130,BN132,0)+IF($B$151=$B$134,BN136,0)+IF($B$151=$B$138,BN140,0)+IF($B$151=$B$142,BN144,0)+IF($B$151=$B$146,BN148,0) -> 0.90 | BO153: 0.91 | BP153: 0.91 | BQ153: 0.92 | BR153: 0.93 | BS153: 0.93 | BT153: 0.94 | BU153: 0.94 | BV153: 0.95 | BW153: 0.95 | BX153: 0.96 | BY153: 0.96 | BZ153: 0.97 | CA153: 0.97 | CB153: 0.98 | CC153: 0.98 | CD153: 0.99 | CE153: 0.99 | CF153: 0.99 | CG153: 0.99 | CH153: 0.99 | CI153: 0.99 | CJ153: 1.00 | CK153: 1.00 | CL153: 1.00 | CM153: 1.00 | CN153: 1.00 | CO153: 1.00 | CP153: 1.00 | CQ153: 1.00 | CR153: 1.00 | CS153: 0.99 | CT153: 0.99 | CU153: 0.99 | CV153: 0.99 | CW153: 0.99 | CX153: 0.99
A155: Productivity
A156: Input
A157: Net project head [m] | B157: =$B$19 -> 17.10
A158: Weir length [m] | B158: =$B$23 -> 10.00
A159: Power group electrical power [kW] | B159: =$B$12 -> 340.00
A160: Max global efficiency | B160: =$D$83 -> 0.89
A161: Power group discharge (nom) [m^3/s] | B161: =$F$82 -> 2.29
A162: Utilities minimum power [kW] | B162: =$B$24 -> 275.00
A163: Utilities peak power [kW] | B163: =$B$25 -> 566.00
A164: Utilities load factor | B164: =$B$26 -> 0.60
A165: Grid line voltage [kV] | B165: =B66 -> 11.00
A166: Electrical resistance, single fase [Ohm/km] | B166: =B$67 -> 0.27
A167: Grid total length [km] | B167: =B9 -> 13.50
A168: Power factor [kW/kVA] | B168: =$B$32 -> 0.90
A170: Month | B170: January | C170: February | D170: March | E170: April | F170: May | G170: June | H170: July | I170: August | J170: September | K170: October | L170: November | M170: December
A171: Monthly hours [h] | B171: =31*24 -> 744 | C171: =28*24 -> 672 | D171: =31*24 -> 744 | E171: =30*24 -> 720 | F171: =31*24 -> 744 | G171: =30*24 -> 720 | H171: =31*24 -> 744 | I171: =31*24 -> 744 | J171: =30*24 -> 720 | K171: =31*24 -> 744 | L171: =30*24 -> 720 | M171: =31*24 -> 744
A172: Effective hours (except manteinance) [h] | B172: =B171-IF($B$11=B170,$B$10,0) -> 744 | C172: =C171-IF($B$11=C170,$B$10,0) -> 672 | D172: 744 | E172: 720 | F172: 744 | G172: 720 | H172: 744 | I172: 744 | J172: 720 | K172: 344 | L172: 720 | M172: 744
A174: Available flow rate (t) [m^3/s] | B174: =B$21-B$22 -> 3.69 | C174: =C$21-C$22 -> 3.65 | D174: =D$21-D$22 -> 3.64 | E174: 3.65 | F174: 3.63 | G174: 3.22 | H174: 2.86 | I174: =I$21-I$22 -> 2.44 | J174: =J$21-J$22 -> 2.44 | K174: 2.44 | L174: 3.18 | M174: 3.48
A175: Average power group discharge (t) [m^3/s] | B175: =MIN($B$161,B174) -> 2.29 | C175: =MIN($B$161,C174) -> 2.29 | D175: 2.29 | E175: 2.29 | F175: 2.29 | G175: 2.29 | H175: 2.29 | I175: 2.29 | J175: =MIN($B$161,J174) -> 2.29 | K175: 2.29 | L175: 2.29 | M175: 2.29
A177: Over flow [m^3/s] | B177: =B21-B175 -> 1.75 | C177: =C21-C175 -> 1.71 | D177: 1.71 | E177: 1.72 | F177: 1.69 | G177: 1.28 | H177: 0.92 | I177: =I21-I175 -> 0.51 | J177: =J21-J175 -> 0.51 | K177: 0.51 | L177: 1.24 | M177: 1.54
A178: Extra head due to over flow [m] | B178: =(B177/($B$158*1.6))^(2/3) -> 0.23 | C178: =(C177/($B$158*1.6))^(2/3) -> 0.22 | D178: 0.22 | E178: 0.23 | F178: 0.22 | G178: 0.19 | H178: 0.15 | I178: 0.10 | J178: =(J177/($B$158*1.6))^(2/3) -> 0.10 | K178: 0.10 | L178: 0.18 | M178: 0.21
A179: Available head (t) [m] | B179: =$B$157+B178 -> 17.33 | C179: =$B$157+C178 -> 17.32 | D179: 17.32 | E179: 17.33 | F179: 17.32 | G179: 17.29 | H179: 17.25 | I179: 17.20 | J179: 17.20 | K179: 17.20 | L179: 17.28 | M179: 17.31
A181: Flow rate % | B181: =B175/$B$161 -> 100% | C181: =C175/$B$161 -> 100% | D181: 100% | E181: 100% | F181: 100% | G181: 100% | H181: 100% | I181: 100% | J181: 100% | K181: 100% | L181: 100% | M181: 100%
A182: Flow rate (discretized) % | B182: =ROUND(B181,2) -> 100% | C182: =ROUND(C181,2) -> 100% | D182: =ROUND(D181,2) -> 100% | E182: 100% | F182: 100% | G182: 100% | H182: 100% | I182: 100% | J182: 100% | K182: 100% | L182: 100% | M182: 100%
A183: Equivalent efficiency ratio (t) | B183: =HLOOKUP(B$182,$B$152:$CX$153,2,FALSE) -> 0.99 | C183: =HLOOKUP(C$182,$B$152:$CX$153,2,FALSE) -> 0.99 | D183: 0.99 | E183: 0.99 | F183: 0.99 | G183: 0.99 | H183: 0.99 | I183: 0.99 | J183: 0.99 | K183: 0.99 | L183: 0.99 | M183: 0.99
A185: Average power group electrical power (t) [kW] | B185: =B175*9.81*B179*B183*$B$160 -> 344.56 | C185: =C175*9.81*C179*C183*$B$160 -> 344.47 | D185: 344.47 | E185: 344.49 | F185: 344.45 | G185: 343.69 | H185: 342.96 | I185: 341.99 | J185: 341.99 | K185: 341.99 | L185: 343.62 | M185: 344.18
A186: Power dissipated on grid [kW] | B186: =($B$167*$B$166*(B185/($B$165*$B$168))^2)/1000 -> 4.47 | C186: =($B$167*$B$166*(C185/($B$165*$B$168))^2)/1000 -> 4.47 | D186: 4.47 | E186: 4.47 | F186: 4.47 | G186: 4.45 | H186: 4.43 | I186: 4.40 | J186: 4.40 | K186: 4.40 | L186: 4.44 | M186: 4.46
A187: Net power [kW] | B187: =B185-B186 -> 340.09 | C187: =C185-C186 -> 340.01 | D187: 340.00 | E187: 340.02 | F187: 339.98 | G187: 339.25 | H187: 338.53 | I187: 337.59 | J187: 337.59 | K187: 337.59 | L187: 339.17 | M187: 339.72
A188: Minimum power guaranteed (t) | B188: =IF(B187>$B$162,1,0) -> 1.00 | C188: =IF(C187>$B$162,1,0) -> 1.00 | D188: =IF(D187>$B$162,1,0) -> 1.00 | E188: 1.00 | F188: 1.00 | G188: 1.00 | H188: 1.00 | I188: 1.00 | J188: 1.00 | K188: 1.00 | L188: 1.00 | M188: 1.00
A189: Operative hours (including manteinance) (t) [h] | B189: =B171*B188 -> 744.00 | C189: 672.00 | D189: 744.00 | E189: 720.00 | F189: 744.00 | G189: 720.00 | H189: 744.00 | I189: 744.00 | J189: 720.00 | K189: 744.00 | L189: 720.00 | M189: 744.00
A191: Monthly productivity (t) [MWh] | B191: =B187*B172/1000 -> 253.02 | C191: =C187*C172/1000 -> 228.48 | D191: 252.96 | E191: 244.81 | F191: 252.95 | G191: 244.26 | H191: 251.87 | I191: 251.16 | J191: 243.06 | K191: 116.13 | L191: 244.20 | M191: 252.75
A192: Monthly utilities energy request (t) [MWh] | B192: =$B$163*$B$164*B172/1000 -> 252.66 | C192: =$B$163*$B$164*C172/1000 -> 228.21 | D192: =$B$163*$B$164*D172/1000 -> 252.66 | E192: 244.51 | F192: 252.66 | G192: 244.51 | H192: 252.66 | I192: 252.66 | J192: 244.51 | K192: 116.82 | L192: 244.51 | M192: 252.66
A193: Monthly sold energy (t) [MWh] | B193: =MIN(B191:B192) -> 252.66 | C193: =MIN(C191:C192) -> 228.21 | D193: =MIN(D191:D192) -> 252.66 | E193: 244.51 | F193: 252.66 | G193: 244.26 | H193: 251.87 | I193: 251.16 | J193: 243.06 | K193: 116.13 | L193: 244.20 | M193: 252.66
A195: Equivalent hours [h] | B195: =B198*1000/B159 -> 8335
A196: Operative hours [h] | B196: =SUM(B189:M189) -> 8760
A197: Power plant load factor | B197: =B196/8760 -> 1.00
A198: Annual productivity [MWh] | B198: =SUM($B$193:$M$193) -> 2834.06
A200: SHEET OUTPUT
A202: Power group electrical power [kW] | B202: =$B$12 -> 340.00
A203: Number of parallel turbines | B203: =$B$7 -> 2
A204: Bar spacing [m] | B204: =HLOOKUP($B$4,$A$36:$D$55,$E50,FALSE) -> 0.045
A205: Power group discharge (nom) [m^3/s] | B205: =$F$82 -> 2.29
A206: Single turbine discharge (nom) [m^3/s] | B206: =$F$83 -> 1.15
A207: Main turbine dimension [m] | B207: =$L$85 -> 0.43
A208: Suction head [m] | B208: =$N$85 -> 0.77
A210: Power group cost [USD] | B210: =$D$102 -> 555,457
A211: Transmission grid cost [USD] | B211: =$F$104 -> 246,421
A212: Step up transformer cost [USD] | B212: =$F$105 -> 38,620
A213: Step down transformer(s) cost [USD] | B213: =$F$106 -> 134,382
A214: Electrical equipment cost [USD] | B214: =SUM(B211:B213) -> 419,423
A216: Flow rate % | B216: 0% | C216: 1% | D216: 2% | E216: 3% | F216: 4% | G216: 5% | H216: 6% | I216: 7% | J216: 8% | K216: 9% | L216: 10% | M216: 11% | N216: 12% | O216: 13% | P216: 14% | Q216: 15% | R216: 16% | S216: 17% | T216: 18% | U216: 19% | V216: 20% | W216: 21% | X216: 22% | Y216: 23% | Z216: 24% | AA216: 25% | AB216: 26% | AC216: 27% | AD216: 28% | AE216: 29% | AF216: 30% | AG216: 31% | AH216: 32% | AI216: 33% | AJ216: 34% | AK216: 35% | AL216: 36% | AM216: 37% | AN216: 38% | AO216: 39% | AP216: 40% | AQ216: 41% | AR216: 42% | AS216: 43% | AT216: 44% | AU216: 45% | AV216: 46% | AW216: 47% | AX216: 48% | AY216: 49% | AZ216: 50% | BA216: 51% | BB216: 52% | BC216: 53% | BD216: 54% | BE216: 55% | BF216: 56% | BG216: 57% | BH216: 58% | BI216: 59% | BJ216: 60% | BK216: 61% | BL216: 62% | BM216: 63% | BN216: 64% | BO216: 65% | BP216: 66% | BQ216: 67% | BR216: 68% | BS216: 69% | BT216: 70% | BU216: 71% | BV216: 72% | BW216: 73% | BX216: 74% | BY216: 75% | BZ216: 76% | CA216: 77% | CB216: 78% | CC216: 79% | CD216: 80% | CE216: 81% | CF216: 82% | CG216: 83% | CH216: 84% | CI216: 85% | CJ216: 86% | CK216: 87% | CL216: 88% | CM216: 89% | CN216: 90% | CO216: 91% | CP216: 92% | CQ216: 93% | CR216: 94% | CS216: 95% | CT216: 96% | CU216: 97% | CV216: 98% | CW216: 99% | CX216: 100%
A217: Equivalent efficiency ratio (Eta/EtaMax) | B217: =B$153 -> 0.00 | C217: =C$153 -> 0.00 | D217: 0.00 | E217: 0.00 | F217: 0.00 | G217: 0.00 | H217: 0.00 | I217: 0.00 | J217: 0.00 | K217: 0.00 | L217: 0.00 | M217: 0.00 | N217: 0.00 | O217: 0.00 | P217: 0.00 | Q217: 0.40 | R217: 0.45 | S217: 0.49 | T217: 0.54 | U217: 0.58 | V217: 0.63 | W217: 0.66 | X217: 0.69 | Y217: 0.72 | Z217: 0.75 | AA217: 0.78 | AB217: 0.80 | AC217: 0.82 | AD217: 0.84 | AE217: 0.86 | AF217: 0.88 | AG217: 0.89 | AH217: 0.90 | AI217: 0.91 | AJ217: 0.93 | AK217: 0.94 | AL217: 0.95 | AM217: 0.96 | AN217: 0.97 | AO217: 0.98 | AP217: 0.99 | AQ217: 0.99 | AR217: 0.99 | AS217: 1.00 | AT217: 1.00 | AU217: 1.00 | AV217: 1.00 | AW217: 1.00 | AX217: 0.99 | AY217: 0.99 | AZ217: 0.99 | BA217: 0.79 | BB217: 0.80 | BC217: 0.81 | BD217: 0.82 | BE217: 0.83 | BF217: 0.84 | BG217: 0.85 | BH217: 0.86 | BI217: 0.87 | BJ217: 0.88 | BK217: 0.89 | BL217: 0.89 | BM217: 0.90 | BN217: 0.90 | BO217: =BO$153 -> 0.91 | BP217: 0.91 | BQ217: 0.92 | BR217: 0.93 | BS217: 0.93 | BT217: 0.94 | BU217: 0.94 | BV217: 0.95 | BW217: 0.95 | BX217: 0.96 | BY217: 0.96 | BZ217: 0.97 | CA217: 0.97 | CB217: 0.98 | CC217: 0.98 | CD217: 0.99 | CE217: 0.99 | CF217: 0.99 | CG217: 0.99 | CH217: 0.99 | CI217: 0.99 | CJ217: 1.00 | CK217: 1.00 | CL217: 1.00 | CM217: 1.00 | CN217: 1.00 | CO217: =CO$153 -> 1.00 | CP217: =CP$153 -> 1.00 | CQ217: 1.00 | CR217: 1.00 | CS217: 0.99 | CT217: 0.99 | CU217: 0.99 | CV217: 0.99 | CW217: 0.99 | CX217: 0.99
A218: Monthly sold energy (t) [MWh] | B218: =B$193 -> 253 | C218: 228 | D218: 253 | E218: 245 | F218: 253 | G218: 244 | H218: 252 | I218: 251 | J218: 243 | K218: 116 | L218: 244 | M218: 253
A220: Equivalent hours [h] | B220: =$B$195 -> 8335
A221: Operative hours [h] | B221: =$B$196 -> 8760.000
A222: Power plant load factor | B222: =$B$197 -> 1.00
A223: Annual productivity [MWh] | B223: =$B$198 -> 2834.06
A255: END SHEET

Sheet Plant informations
A1: INPUT DATA
A3: Weir and intake | C3: Channel and penstock
A4: Building materials transport cost coefficient | B4: 1.10 | C4: Channel lining | D4: artificially_concreteC15
A5: Ground type | B5: hard_ground | C5: Channel shape | D5: trapezoid_(half_hexagon)
A6: Weir length [m] | B6: 10.00 | C6: Channel length [m] | D6: 141.00
A7: Weir height [m] | B7: 5.00 | C7: Channel hydraulic gradient [m/m] | D7: 0.0020
A8: Weir material | B8: Armed_concrete | C8: Penstock material | D8: welded_steel
A9: Trashrack bars shape | B9: stainless_circular_[12mm] | C9: Penstock length [m] | D9: 36.00
C10: Penstock deposition type | D10: External
A12: DATA FROM OTHER SHEETS
A14: Gross project head [m] | B14: ='Site informations'!$D$4 -> 18.00
A15: Net project head [m] | B15: ='Site informations'!$B$52 -> 17.10
A16: Number of parallel turbines | B16: ='Turbine informations'!$B$203 -> 2
A17: Bar spacing [m] | B17: ='Turbine informations'!$B$204 -> 0.045
A18: Power group discharge (nom) [m^3/s] | B18: ='Turbine informations'!$B205 -> 2.29
A19: Single turbine discharge (nom) [m^3/s] | B19: ='Turbine informations'!$B206 -> 1.15
A20: Maximum flow [m^3/s] | B20: ='Site informations'!$D$8 -> 4.00
A21: Main turbine dimension [m] | B21: ='Turbine informations'!$B$207 -> 0.43
A22: Suction head [m] | B22: ='Turbine informations'!$B$208 -> 0.77
A25: DATA FROM THEORY
A28: Digging
A29: Ground type | B29: soft_ground | C29: medium_ground | D29: hard_ground
A30: Basic cost [USD/m^3] | B30: 7.10 | C30: 9.50 | D30: 11.80
A32: Weir
A33: Material | B33: Armed_concrete | C33: rock
A34: Density [kg/m^3] | B34: 2700.00 | C34: 2700.00
A35: Size coefficient | B35: 1.50 | C35: 2.10
A36: Basic cost [USD/m^3] | B36: 235.30 | C36: 58.90
A37: Final cost [USD/m^3] | B37: =B36*$B$4 -> 258.83 | C37: =C36 -> 58.90
A40: Pillar
A41: Material | B41: Armed_concrete
A42: Density [kg/m^3] | B42: 2700.00
A43: Basic cost [USD/m^3] | B43: 235.30
A44: Final cost [USD/m^3] | B44: =B43*$B$4 -> 258.83
A46: Gate
A47: Metal sheet tensile strenght [N/m^2] | B47: =200*10^6 -> 200,000,000
A48: 1 gate cost coefficient c1* [USD] | B48: 14,400.00
A49: 2 gate cost coefficient t^c2 | B49: 1.06
A51: Trashrack
A52: Material | B52: stainless_circular_[12mm] | C52: stainless_drop_[12mm]
A53: Bar shape factor (K) | B53: 1.790 | C53: 0.920
A54: Bar thikness (t) [m] | B54: 0.012 | C54: 0.012
A55: Basic cost [USD/m] | B55: 1.50 | C55: 2.50
A56: Final cost [USD/m] | B56: =B55*$B$4 -> 1.65 | C56: =C55*$B$4 -> 2.75
A59: Channel layer
A60: Material | B60: excavated_rock | C60: artificially_concreteC15
A61: Manning roughness coefficient [s/m^(1/3)] | B61: 0.035 | C61: 0.014
A62: Basic cost [USD/m^3] | B62: 58.90 | C62: 176.50
A63: Thickness [m] | B63: 0.350 | C63: 0.250
A64: Layer basic cost [USD/m^2] | B64: =B62*B63 -> 20.62 | C64: =C62*C63 -> 44.13
A65: Layer final cost [USD/m^2] | B65: =B64 -> 20.62 | C65: =C64*$B$4 -> 48.54
A68: Penstock material
A69: Material | B69: welded_steel | C69: polyethylene
A70: Manning roughness coefficient [s/m^(1/3)] | B70: 0.012 | C70: 0.009
A71: Tensile strenght [N/m^2] | B71: 400,000,000 | C71: 5,000,000
A72: 1 penstock cost coefficient c1* [USD] | B72: 550.00 | C72: 55.00
A73: 2 penstock cost coefficient H^c2 | B73: 0.000 | C73: 0.931
A74: 3 penstock cost coefficient d^c3 | B74: 1.100 | C74: 2.035
A77: Penstock valve
A78: 1 valve cost coefficient c1* [USD] | B78: 22,000.00
A79: 2 valve cost coefficient d^c2 | B79: 2.60
A81: Penstock deposition type
A82: Type | B82: Buried | C82: External
A83: Cost coefficient | B83: 1 | C83: 0.5
A86: COMPUTATIONS
A88: Flood coefficient | B88: 40.00
A89: Max flow during flood [m^3/s] | B89: =$B$88*$B$20 -> 160.00
A90: Max extra head during flood [m] | B90: =($B$89/($B$6*1.6))^(2/3) -> 4.64
A92: Weir structure
A93: Input | C93: Weir turning sizing | E93: Protection wall sizing | G93: Costs
A94: Weir length [m] | B94: =$B$6 -> 10.00 | C94: Upstream angle [rad] | D94: =B98/180*PI() -> 1.40 | E94: Wall height [m] | F94: =B95+B96 -> 9.64 | G94: Weir cost [USD] | H94: =B100*B106*D106 -> 79,773
A95: Weir height [m] | B95: =$B$7 -> 5.00 | C95: Downstream stream angle [rad] | D95: =B99/180*PI() -> 1.40 | E95: Wall length [m] | F95: =2*B94 -> 20.00 | G95: Wall cost [USD] | H95: =B105*B100*F106 -> 189,330
A96: Max extra head during flood [m] | B96: =$B$90 -> 4.64 | C96: h | D96: =B96/B95 -> 0.93 | E96: Inner angle [rad] | F96: =B101/180*PI() -> 1.40 | G96: Weir structure cost [USD] | H96: =SUM(H94:H95) -> 269,102
A97: Weir and wall density [kg/m^3] | B97: =HLOOKUP($B$8,$A$33:$C$37,2,FALSE) -> 2700.00 | C97: a | D97: =1/TAN(D94) -> 0.18 | E97: Outer angle [rad] | F97: =B102/180*PI() -> 1.57
A98: Upstream angle [°] | B98: 80.00 | C98: c | D98: =1/TAN(D95) -> 0.18 | E98: a | F98: =1/TAN(F96) -> 0.18
A99: Downstream stream angle [°] | B99: 80.00 | C99: A | D99: =1/2*B97*B95^3 -> 168750.00 | E99: c | F99: =1/TAN(F97) -> 0.00
A100: Weir and wall final cost [USD/m^3] | B100: =HLOOKUP($B$8,$A$33:$C$37,5,FALSE) -> 258.83 | C100: B | D100: =1000*B95^2*(D97*D96*B95+SIN(D94))+B97*B95^3*(5/4*D98+1/4*D97) -> 134346.66 | E100: A | F100: =1/2*B97*F94^3 -> 1209983.89
A101: Wall inner angle [°] | B101: 80.00 | C101: C | D101: =1000*B95^2*(-1/6*(1+D96)^3*B95+D96*D97*D98*B95+1/2*D96*D97^2*B95+SIN(D94)*D98*D97+1/2*D97*SIN(D94))+1/2*B97*D98*B95^3*(D97+D98) -> -130539.65 | E101: B | F101: =1000*F94^2*(SIN(F96))+B97*F94^3*(5/4*F99+1/4*F98) -> 198224.36
A102: Wall outer angle [°] | B102: 90.00 | C102: b | D102: =MAX(0,(-D100+(D100^2-4*D99*D101)^0.5)/(2*D99)) -> 0.57 | E102: C | F102: =1000*F94^2*(-1/6*F94+SIN(F96)*F99*F98+1/2*F98*SIN(F96))+1/2*B97*F99*F94^3*(F98+F99) -> -141309.54
A103: Weir size coefficient | B103: =HLOOKUP($B$8,$A$33:$C$37,3,FALSE) -> 1.50 | C103: Corrected b | D103: =D102*B103 -> 0.85 | E103: b | F103: =MAX(0,(-F101+(F101^2-4*F100*F102)^0.5)/(2*F100)) -> 0.27
A104: Wall size coefficient | B104: 0.50 | C104: Main base | D104: =(D103+D97+D98)*B95 -> 6.02 | E104: Main base | F104: =(F103+F98+F99)*F94*B104 -> 2.15
A105: Wall cost corrective factor | B105: 1.10 | C105: Secondary base | D105: =D103*B95 -> 4.26 | E105: Secondary base | F105: =F103*F94*B104 -> 1.30
A106: Weir cost corrective factor | B106: 1.20 | C106: Weir volume [m^3] | D106: =(D104+D105)*B95/2*B94 -> 256.84 | E106: Wall volume [m^3] | F106: =((F104+F105)*F94/2)*F95*2 -> 664.98
A109: Conveyance intake structure
A110: Input | C110: Digging sizing | E110: Trashrack sizing | G110: Gate pressure sizing | I110: Pillar turning sizing | K110: Costs
A111: Building materials transport cost coefficient | B111: =$B$4 -> 1.10 | C111: Conveyance channel depth [m] | D111: =(B112*B114*1.26*B113^-0.5)^(3/8) -> 0.96 | E111: Trashrack height [m] | F111: =(D116+B115)/(SIN(B121/180*PI())) -> 6.02 | G111: Gate height [m] | H111: =(D111+B115) -> 5.60 | I111: Pillar height [m] | J111: =2.2*H111 -> 12.33 | K111: Digging cost [USD] | L111: =B125*B131*D120 -> 193
A112: Power group discharge (nom) [m^3/s] | B112: =$B$18 -> 2.29 | C112: Wetted perimeter [m] | D112: =4*D111 -> 3.85 | E112: Trashrack width [m] | F112: =D114 -> 1.93 | G112: Gate surface [m^2] | H112: =D114*H111 -> 10.80 | I112: Mean static force over the gate [N] | J112: =9.81*1000*D114*H111^2/2 -> 296832.07 | K112: Trashrack cost [USD] | L112: =B134*B127*F111*F115 -> 1,688
A113: Channel hydraulic gradient [m/m] | B113: =$D$7 -> 0.00 | C113: Cross section area [m^2] | D113: =2*D111^2 -> 1.86 | E113: Trashrack project surface [m^2] | F113: =F111*F112 -> 11.59 | G113: Local static pressure over the gate [Pa] | H113: =9.81*1000*H111 -> 54983.09 | I113: Mean dinamic force over the gate [N] | J113: =1/2*D117^2*1000*H112 -> 8251.82 | K113: Gate cost [USD] | L113: =B132*H117*H112 -> 7,224
A114: Manning roughness coefficient [s/m^(1/3)] | B114: =HLOOKUP($D$4,$A$60:$C$65,2,FALSE) -> 0.01 | C114: Conveyance channel top width [m] | D114: =2*D111 -> 1.93 | E114: Trashrack approach velocity [m/s] | F114: =B112/D113*(SIN(B121/180*PI())) -> 1.22 | G114: Local dinamic pressure over the gate [Pa] | H114: =1/2*D117^2*1000 -> 764.25 | I114: Mean force over the gate [N] | J114: =J113+J112 -> 305083.90 | K114: Pillars cost [USD] | L114: =2*B133*B126*J116 -> 11,103
A115: Max extra head during flood [m] | B115: =$B$90 -> 4.64 | C115: Conveyance freeboard depth [m] | D115: =1/3*D111 -> 0.32 | E115: Number of bars | F115: =CEILING(F112/(B119+B120),1) -> 34.00 | G115: Critical pressure over the gate [Pa] | H115: =H114+H113 -> 55747.34 | I115: Pillar width [m] | J115: =((J114*H111)/(3*B117*9.81*J111))^(1/3)*B130 -> 1.20 | K115: Layer cost [USD] | L115: =D118*B135*B128 -> 504
A116: Metal sheet tensile strenght [N/m^2] | B116: =$B$47 -> 200000000.00 | C116: Total depth [m] | D116: =D111+D115 -> 1.28 | E116: Trashrack project head loss [m] | F116: =B118*(B119/B120)^(4/3)*SIN(B121*PI()/180)*F114^2/(2*9.81) -> 0.02 | G116: Computed gate thickness [m] | H116: =1/2*B129*(H115*D114)/(0.8*B116)+0.001 -> 0.0111 | I116: Pillar volume [m^3] | J116: =J115^2*J111 -> 17.87 | K116: Conveyence intake structure cost [USD] | L116: =SUM(L111:L115) -> 20,712
A117: Pillar density [kg/m^3] | B117: =$B$42 -> 2700.00 | C117: Mean velocity [m/s] | D117: =B112/D113 -> 1.24 | G117: Metal sheet final cost [USD/m^2] | H117: =B111*B123*H116^B124 -> 133.80
A118: Bar shape factor (K) | B118: =HLOOKUP($B$9,$A$52:$C$56,2,FALSE) -> 1.79 | C118: Layer surface [m^2] | D118: =D114*(D112+2*D115) -> 8.66 | G118: Gate weight [kg] | H118: =8000*H116*H112 -> 956.04
A119: Bar thikness (t) [m] | B119: =HLOOKUP($B$9,$A$52:$C$56,3,FALSE) -> 0.01 | C119: Digging for layer [m^3] | D119: =D118*B122 -> 2.16
A120: Bar spacing (b) [m] | B120: =$B$17 -> 0.05 | C120: Digging volume [m^3] | D120: =D116*D114^2+(2*J115+D114)*J115*D116+D119 -> 13.63
A121: Trashrack angle of slope [°] | B121: 80.00
A122: Layer thickness [m] | B122: =HLOOKUP($D$4,$A$60:$C$65,4,FALSE) -> 0.25
A123: 1 gate cost coefficient c1* [USD] | B123: =$B$48 -> 14400.00
A124: 2 gate cost coefficient t^c2 | B124: =$B$49 -> 1.06
A125: Digging cost [USD/m^3] | B125: =HLOOKUP($B$5,$A$29:$D$30,2,FALSE) -> 11.80
A126: Pillar final cost [USD/m^3] | B126: =$B$44 -> 258.83
A127: Bars final cost [USD/m] | B127: =HLOOKUP($B$9,$A$52:$C$56,5,FALSE) -> 1.65
A128: Layer final cost [USD/m^2] | B128: =HLOOKUP($D$4,$A$60:$C$65,6,FALSE) -> 48.54
A129: Gate size coefficient | B129: 30.00
A130: Pillar size coefficient | B130: 1.00
A131: Digging cost corrective factor | B131: 1.20
A132: Gate cost corrective factor | B132: 5.00
A133: Pillar cost corrective factor | B133: 1.20
A134: Trashrack cost corrective factor | B134: 5.00
A135: Layer cost corrective factor | B135: 1.20
A138: Sediment trap
A139: Input | C139: Digging sizing | E139: Costs
A140: Power group discharge (nom) [m^3/s] | B140: =$B$18 -> 2.29 | C140: Deposition velocity [m/s] | D140: =0.1/(9*B145)*((1+157*B145^3)^0.5-1) -> 0.05 | E140: Digging cost [USD] | F140: =B150*B147*D147 -> 3,181
A141: Conveyance channel depth [m] | B141: =$D$111 -> 0.96 | C141: Trap depth [m] | D141: =(B141+B142)*1.5 -> 1.93 | E141: Layer cost [USD] | F141: =B148*D145*B151 -> 12,163
A142: Conveyance freeboard depth [m] | B142: =D115 -> 0.32 | C142: Trap width [m] | D142: =D141*1.5 -> 2.89 | E142: Sediment trap cost [USD] | F142: =SUM(F140:F141) -> 15,343
A143: Conveyance channel top width [m] | B143: =$D$114 -> 1.93 | C143: Trap main length [m] | D143: =B140/(D140*D142)*B149 -> 33.26
A144: Channel top width [m] | B144: =$G$161 -> 1.98 | C144: Trap total length [m] | D144: =D143+(B144+B143) -> 37.17
A145: Grain size limit [mm] | B145: 0.30 | C145: Layer surface [m^2] | D145: =(2*D141+D142)*D144 -> 250.59
A146: Layer thickness [m] | B146: =HLOOKUP($D$4,$A$60:$C$65,4,FALSE) -> 0.25 | C146: Digging for layer [m^3] | D146: =D145*B146 -> 62.65
A147: Digging cost [USD/m^3] | B147: =HLOOKUP($B$5,$A$29:$D$30,2,FALSE) -> 11.80 | C147: Digging volume [m^3] | D147: =D141*D142*D144+D146 -> 269.53
A148: Layer final cost [USD/m^2] | B148: =HLOOKUP($D$4,$A$60:$C$65,6,FALSE) -> 48.54
A149: Digging size coefficient | B149: 2.00
A150: Digging cost corrective factor | B150: 1.00
A151: Layer cost corrective factor | B151: 1.00
A156: Channel
A157: Input | C157: Digging sizing by shape | D157: trapezoid_(half_hexagon) | E157: rectangle_(half_square) | F157: Digging sizing (effective shape) | H157: Costs
A158: Channel shape | B158: =$D$5 -> trapezoid_(half_hexagon) | C158: Channel depth [m] | D158: =(B159*B162*0.92*B161^-0.5)^(3/8) -> 0.86 | E158: =(B159*B162*1.26*B161^-0.5)^(3/8) -> 0.96 | F158: Channel depth [m] | G158: =HLOOKUP(B158,$D$157:$E$165,2,FALSE) -> 0.86 | H158: Digging cost [USD] | I158: =G167*B166*B164 -> 5,421
A159: Power group discharge (nom) [m^3/s] | B159: =$B$18 -> 2.29 | C159: Wetted perimeter [m] | D159: =3.46*D158 -> 2.96 | E159: =4*E158 -> 3.85 | F159: Wetted perimeter [m] | G159: =HLOOKUP(B158,$D$157:$E$165,3,FALSE) -> 2.96 | H159: Layer cost [USD] | I159: =G165*B167*B165 -> 29,012
A160: Channel length [m] | B160: =$D$6 -> 141.00 | C160: Cross section area [m^2] | D160: =1.73*D158^2 -> 1.27 | E160: =2*E158^2 -> 1.86 | F160: Cross section area [m^2] | G160: =HLOOKUP(B158,$D$157:$E$165,4,FALSE) -> 1.27 | H160: Channel cost [USD] | I160: =SUM(I158:I159) -> 34,433
A161: Channel hydraulic gradient (S) [m/m] | B161: =$D$7 -> 0.0020 | C161: Channel top width [m] | D161: =2.31*D158 -> 1.98 | E161: =2*E158 -> 1.93 | F161: Channel top width [m] | G161: =HLOOKUP(B158,$D$157:$E$165,5,FALSE) -> 1.98
A162: Manning roughness coefficient [s/m^(1/3)] | B162: =HLOOKUP($D$4,$A$60:$C$65,2,FALSE) -> 0.01 | C162: Freeboard depth [m] | D162: =1/3*D158 -> 0.29 | E162: =1/3*E158 -> 0.32 | F162: Freeboard depth [m] | G162: =HLOOKUP(B158,$D$157:$E$165,6,FALSE) -> 0.29
A163: Layer thickness [m] | B163: =HLOOKUP($D$4,$A$60:$C$65,4,FALSE) -> 0.25 | C163: Shape cost coefficient | D163: 1.30 | E163: 1.00 | F163: Shape cost coefficient | G163: =HLOOKUP(B158,$D$157:$E$165,7,FALSE) -> 1.30
A164: Digging cost [USD/m^3] | B164: =HLOOKUP($B$5,$A$29:$D$30,2,FALSE) -> 11.80 | C164: Mean velocity [m/s] | D164: =B159/D160 -> 1.81 | E164: =B159/E160 -> 1.24 | F164: Mean velocity [m/s] | G164: =HLOOKUP(B158,$D$157:$E$165,8,FALSE) -> 1.81
A165: Layer final cost [USD/m^2] | B165: =HLOOKUP($D$4,$A$60:$C$65,6,FALSE) -> 48.54 | C165: Digging volume [m^3] | D165: =B160*(D160+D162*D161) -> 258.32 | E165: =B160*(E160+E162*E161) -> 348.84 | F165: Layer surface [m^2] | G165: =B160*(G159+2*G162) -> 498.11
A166: Digging cost corrective factor | B166: 1.20 | C166: Total depth [m] | D166: =D158+D162 -> 1.14 | E166: =E158+E162 -> 1.28 | F166: Digging for layer [m^3] | G166: =G165*B163 -> 124.53
A167: Layer cost corrective factor | B167: 1.20 | F167: Digging volume [m^3] | G167: =HLOOKUP(B158,$D$157:$E$165,9,FALSE)+G166 -> 382.85
F168: Channel head loss [m] | G168: =B160*B161 -> 0.28
A170: Forebay
A171: Input | C171: Digging sizing | E171: Costs
A172: Number of parallel turbines | B172: =$B$16 -> 2.00 | C172: Forebay depth [m] | D172: =3*(B174+B177) -> 3.42 | E172: Digging cost [USD] | F172: =B179*B182*D179 -> 2,984
A173: Power group discharge (nom) [m^3/s] | B173: =$B$18 -> 2.29 | C173: Forebay width [m] | D173: =3*B175*B172^0.5 -> 8.39 | E173: Layer cost [USD] | F173: =B180*B183*D177 -> 5,747
A174: Channel depth [m] | B174: =$G$158 -> 0.86 | C174: Filling time [s] | D174: =MAX(5,2*B176/(9.81*B174)^0.5) -> 97.31 | E174: Forebay cost [USD] | F174: =SUM(F172:F173) -> 8,731
A175: Channel top width [m] | B175: =$G$161 -> 1.98 | C175: Forebay volume [m^3] | D175: =B173*D174 -> 223.24
A176: Channel length [m] | B176: =$D$6 -> 141.00 | C176: Forebay length [m] | D176: =D175/(D172*D173) -> 7.77
A177: Freeboard depth [m] | B177: =$G$162 -> 0.29 | C177: Forebay surface [m^2] | D177: =(2*D172+D173)*D176 -> 118.41
A178: Layer thickness [m] | B178: =HLOOKUP($D$4,$A$60:$C$65,4,FALSE) -> 0.25 | C178: Digging for layer [m^3] | D178: =D177*B178 -> 29.60
A179: Digging cost [USD/m^3] | B179: =HLOOKUP($B$5,$A$29:$D$30,2,FALSE) -> 11.80 | C179: Digging volume [m^3] | D179: =D175+D178 -> 252.84
A180: Layer final cost [USD/m^2] | B180: =HLOOKUP($D$4,$A$60:$C$65,6,FALSE) -> 48.54
A181: Digging size coefficient | B181: 1.00
A182: Digging cost corrective factor | B182: 1.00
A183: Layer cost corrective factor | B183: 1.00
A186: Power intake structure
A187: Input | C187: Digging sizing | E187: Trashrack sizing | G187: Costs
A188: Number of parallel turbines | B188: =$B$16 -> 2.00 | C188: Intake depth [m] | D188: =0.8*B190 -> 2.74 | E188: Trashrack height [m] | F188: =(2*B197+D188)/(SIN(B195/180*PI())) -> 3.29 | G188: Digging cost [USD] | H188: =B202*B198*D195 -> 2,825
A189: Power group discharge (nom) [m^3/s] | B189: =$B$18 -> 2.29 | C189: Intake width [m] | D189: =0.8*B191 -> 6.71 | E189: Trashrack width [m] | F189: =D189 -> 6.71 | G189: Trashrack cost [USD] | H189: =B201*B199*F188*F192 -> 3,202
A190: Forebay depth [m] | B190: =$D$172 -> 3.42 | C190: Intake length [m] | D190: =5/3*D189 -> 11.19 | E190: Trashrack project surface [m^2] | F190: =F188*F189 -> 22.08 | G190: Layer cost [USD] | H190: =B203*B200*D193 -> 9,037
A191: Forebay width [m] | B191: =$D$173 -> 8.39 | C191: Intake final depth [m] | D191: =1.2*B196 -> 0.84 | E191: Trashrack approach velocity [m/s] | F191: =B189/(D188/(SIN(B195/180*PI()))*D189) -> 0.12 | G191: Power intake structure cost [USD] | H191: =SUM(H188:H190) -> 15,065
A192: Bar shape factor (K) | B192: =HLOOKUP($B$9,$A$52:$C$56,2,FALSE) -> 1.79 | C192: Intake final width [m] | D192: =1.2*B196*B188 -> 1.68 | E192: Number of bars | F192: =CEILING(F189/(B193+B194),1) -> 118.00
A193: Bar thikness (t) [m] | B193: =HLOOKUP($B$9,$A$52:$C$56,3,FALSE) -> 0.01 | C193: Intake surface [m^2] | D193: =(D189+D192)*D190+2*(D190*D188) -> 155.16 | E193: Trashrack project head loss [m] | F193: =B192*(B193/B194)^(4/3)*SIN(B195*PI()/180)*F191^2/(2*9.81) -> 0.00
A194: Bar spacing (b) [m] | B194: =$B$17 -> 0.05 | C194: Digging for layer [m^3] | D194: =D193*B197 -> 38.79
A195: Angle of slope [°] | B195: 80.00 | C195: Digging volume [m^3] | D195: =(D189+D192)*D190/2*B190+D194 -> 199.51
A196: Penstock commercial diameter [m] | B196: =D210 -> 0.70 | C196: Total depth [m] | D196: =D188+2*B197 -> 3.24
A197: Layer thickness [m] | B197: =HLOOKUP($D$4,$A$60:$C$65,4,FALSE) -> 0.25
A198: Digging cost [USD/m^3] | B198: =HLOOKUP($B$5,$A$29:$D$30,2,FALSE) -> 11.80
A199: Bars final cost [USD/m] | B199: =HLOOKUP($B$9,$A$52:$C$56,5,FALSE) -> 1.65
A200: Layer final cost [USD/m^2] | B200: =HLOOKUP($D$4,$A$60:$C$65,6,FALSE) -> 48.54
A201: Trashrack cost corrective factor | B201: 5.00
A202: Digging cost corrective factor | B202: 1.20
A203: Layer cost corrective factor | B203: 1.20
A206: Penstock group
A207: Input | C207: Diameter sizing | E207: Costs
A208: Building materials transport cost coefficient | B208: =$B$4 -> 1.10 | C208: Power intake & penstock project head loss [m] | D208: =B209-B210-B213-B214 -> 0.59 | E208: Valve cost (from cost function) [USD] | F208: =B225*B221*D210^B222 -> 8,703
A209: Gross project head [m] | B209: =$B$14 -> 18.00 | C209: Computed diameter [m] | D209: =(B212^2/D208*(0.0157+B215*10.3*B216^2))^(0.19827) -> 0.69 | E209: Penstock cost [USD] | F209: =B215*D214*B224 -> 6,687
A210: Net project head [m] | B210: =$B$15 -> 17.10 | C210: Commercial diameter [m] | D210: =CEILING(D209,0.05) -> 0.70 | E210: Penstock group final cost [USD] | F210: =B208*B211*SUM(F208:F209) -> 33,859
A211: Number of parallel turbines | B211: =$B$16 -> 2.00 | C211: Cross section area [m^2] | D211: =PI()*D210^2/4 -> 0.38
A212: Single turbine discharge (nom) [m^3/s] | B212: =$B$19 -> 1.15 | C212: Wetted perimeter [m] | D212: =PI()*D210 -> 2.20
A213: Trashracks project head loss [m] | B213: =$F$116+$F$193 -> 0.02 | C213: Estimated thickness [m] | D213: =B223*(1000*9.81*B210*D210)/(2*B217) -> 0.00
A214: Channel head loss [m] | B214: =$G$168 -> 0.28 | C214: Penstock specific cost (from cost function) [USD/m] | D214: =B218*B209^B219*D210^B220 -> 371.51
A215: Penstock length [m] | B215: =$D$9 -> 36.00
A216: Manning roughness coefficient [s/m^(1/3)] | B216: =HLOOKUP($D$8,$A$69:$E$74,2,FALSE) -> 0.0120
A217: Penstock tensile strenght [N/m^2] | B217: =HLOOKUP($D$8,$A$69:$E$74,3,FALSE) -> 400000000.00
A218: 1 penstock cost coefficient c1* [USD] | B218: =HLOOKUP($D$8,$A$69:$E$74,4,FALSE) -> 550.00
A219: 2 penstock cost coefficient H^c2 | B219: =HLOOKUP($D$8,$A$69:$E$74,5,FALSE) -> 0.00
A220: 3 penstock cost coefficient d^c3 | B220: =HLOOKUP($D$8,$A$69:$E$74,6,FALSE) -> 1.10
A221: 1 valve cost coefficient c1* [USD] | B221: =$B$78 -> 22000.00
A222: 2 valve cost coefficient d^c2 | B222: =$B$79 -> 2.60
A223: Penstock thickness corrective factor | B223: 2.00
A224: Penstock cost corrective factor | B224: =HLOOKUP($D$10,$A$82:$C$83,2,FALSE) -> 0.50
A225: Valve cost corrective factor | B225: 1.00
A227: Powerhouse building
A228: Input | C228: Digging sizing | E228: Building sizing | G228: Costs
A229: Net project head [m] | B229: =$B$15 -> 17.10 | C229: Machinery length [m] | D229: =6*B231 -> 2.55 | E229: Fundation volume [m^3] | F229: =D231*D236 -> 51.51 | G229: Digging cost [USD] | H229: =B238*B235*D237 -> 875
A230: Number of parallel turbines | B230: =$B$16 -> 2.00 | C230: Machinery width [m] | D230: =3*B231 -> 1.28 | E230: Wall surface [m^2] | F230: =(2*D233+D234*3)*D235 -> 137.27 | G230: Fundation cost [USD] | H230: =B239*B236*F229 -> 26,666
A231: Main turbine dimension [m] | B231: =$B$21 -> 0.43 | C231: Fundation thickness [m] | D231: =MAX(D230/2,0.4) -> 0.64 | E231: Wall and roof volume [m^3] | F231: =(F230+D236)*B233 -> 43.61 | G231: Wall and roof cost [USD] | H231: =B239*B236*F231 -> 22,574
A232: Suction head [m] | B232: =B22 -> 0.77 | C232: Digging depth [m] | D232: =IF(B232<0,-B232,0)+D231 -> 0.64 | G232: Powerhouse building cost [USD] | H232: =SUM(H229:H231) -> 50,115
A233: Wall and roof thickness [m] | B233: 0.20 | C233: House width [m] | D233: =B230*(B234+D230)+B234*2 -> 14.55
A234: Machinery spacing [m] | B234: 3.00 | C234: House length [m] | D234: =D229+B234 -> 5.55
A235: Digging cost [USD/m^3] | B235: =HLOOKUP($B$5,$A$29:$D$30,2,FALSE) -> 11.80 | C235: House height [m] | D235: =MAX(3,1.5*D230) -> 3.00
A236: Material final cost (Armed_concrete) [USD/m^3] | B236: =$B$37 -> 258.83 | C236: Floor and roof surface [m^2] | D236: =D233*D234 -> 80.77
A237: Digging size coefficient | B237: 1.20 | C237: Digging volume [m^3] | D237: =B237*D232*D236 -> 61.82
... 15 more rows

Sheet Economic analysis
A1: INPUT DATA
A3: Economic parameters | C3: Contract type | D3: Power_contract
A4: Discount rate % | B4: 8% | C4: Energy contract | E4: Power contract
A5: Estimated service life [y] | B5: 30 | C5: Energy price valuation [USD/kWh] | D5: 0.0920 | E5: Connection price for preferential loads (yearly) [USD/kW] | F5: 320
A6: Engineering, consultation and commissioning cost % | B6: 10% | E6: Connection price for standard loads (yearly) [USD/kW] | F6: 200
A8: DATA FROM OTHER SHEETS
A10: Starting IRR ratio | B10: 0.00
A11: Weir and intake cost [USD] | B11: ='Plant informations'!$B$256 -> 115,828
A12: Channel and penstock cost [USD] | B12: ='Plant informations'!$B$257 -> 142,203
A13: Power group cost [USD] | B13: ='Turbine informations'!$B$210 -> 555,457
A14: Electrical equipment cost [USD] | B14: ='Turbine informations'!$B$214 -> 419,423
A15: Engineering, consultation and commissioning cost [USD] | B15: =B6*SUM(B11:B14) -> 123,291
A17: Net project head [m] | B17: ='Site informations'!$B$52 -> 17.10
A18: Annual productivity [MWh] | B18: ='Turbine informations'!$B$223 -> 2834.06
A19: Power group electrical power [kW] | B19: ='Turbine informations'!$B$202 -> 340.00
A20: Power plant load factor | B20: ='Turbine informations'!$B$222 -> 1.00
A21: Utilities minimum power [kW] | B21: =Simulation!$B$5 -> 275.00
A22: Utilities peak power [kW] | B22: =Simulation!$B$6 -> 566.00
A23: Utilities load factor | B23: =Simulation!$B$4 -> 0.60
A25: DATA FROM THEORY
A27: Operation and maintenance
A28: 1 maintenance cost coefficient % c1* | B28: 0.400
A29: 2 maintenance cost coefficient H^c2 | B29: 0.014
A30: 3 maintenance cost coefficient P^c3 | B30: -0.342
A31: Annual operation and maintenance (O&M) cost coefficient % | B31: =B28*B17^B29*B19^B30 -> 6%
A33: COMPUTATIONS
A35: Revenues | B35: Energy_contract | C35: Power_contract
A36: First year revenues [USD] | B36: =B18*D5*1000 -> 260,733 | C36: =(F5*B21+F6*(B19-B21)/B23)*B20 -> 109,667
A37: First year revenues (effective contract) [USD] | B37: =HLOOKUP($D$3,$B$35:$C$36,2,FALSE) -> 109,667
A39: Investment cost
A40: 1st year carrying charged cost [USD] | B40: =SUM(B11:B12) -> 258,031
A41: 2nd year carrying charged cost [USD] | B41: =SUM(B13:B15) -> 1,098,172
A42: Investment cost [USD] | B42: =SUM($B$11:$B$15) -> 1,356,203
A43: Specific plant cost [USD/kW] | B43: =$B$42/$B$19 -> 3,989
A45: Net Present Value (NPV) method
A46: Years scenario | B46: 0 | C46: 1 | D46: 2 | E46: 3 | F46: 4 | G46: 5 | H46: 6 | I46: 7 | J46: 8 | K46: 9 | L46: 10 | M46: 11 | N46: 12 | O46: 13 | P46: 14 | Q46: 15 | R46: 16 | S46: 17 | T46: 18 | U46: 19 | V46: 20 | W46: 21 | X46: 22 | Y46: 23 | Z46: 24 | AA46: 25 | AB46: 26 | AC46: 27 | AD46: 28 | AE46: 29 | AF46: 30 | AG46: 31 | AH46: 32 | AI46: 33 | AJ46: 34 | AK46: 35 | AL46: 36 | AM46: 37 | AN46: 38 | AO46: 39 | AP46: 40 | AQ46: 41 | AR46: 42 | AS46: 43 | AT46: 44 | AU46: 45 | AV46: 46 | AW46: 47 | AX46: 48 | AY46: 49 | AZ46: 50
A47: Revenues [USD] | B47: 0 | C47: 0 | D47: =$B$37 -> 109,667 | E47: 109,667 | F47: 109,667 | G47: 109,667 | H47: 109,667 | I47: 109,667 | J47: 109,667 | K47: 109,667 | L47: 109,667 | M47: 109,667 | N47: 109,667 | O47: 109,667 | P47: 109,667 | Q47: 109,667 | R47: 109,667 | S47: 109,667 | T47: 109,667 | U47: 109,667 | V47: 109,667 | W47: 109,667 | X47: 109,667 | Y47: 109,667 | Z47: 109,667 | AA47: 109,667 | AB47: 109,667 | AC47: 109,667 | AD47: 109,667 | AE47: 109,667 | AF47: 109,667 | AG47: 109,667 | AH47: 109,667 | AI47: 109,667 | AJ47: =$B$37 -> 109,667 | AK47: 109,667 | AL47: 109,667 | AM47: 109,667 | AN47: 109,667 | AO47: 109,667 | AP47: 109,667 | AQ47: 109,667 | AR47: 109,667 | AS47: 109,667 | AT47: 109,667 | AU47: 109,667 | AV47: 109,667 | AW47: 109,667 | AX47: 109,667 | AY47: 109,667 | AZ47: 109,667
A48: O&M costs [USD] | B48: 0 | C48: 0 | D48: =$B$31*$B$42 -> 76,894 | E48: 76,894 | F48: 76,894 | G48: 76,894 | H48: 76,894 | I48: 76,894 | J48: 76,894 | K48: 76,894 | L48: 76,894 | M48: 76,894 | N48: 76,894 | O48: 76,894 | P48: 76,894 | Q48: 76,894 | R48: 76,894 | S48: 76,894 | T48: 76,894 | U48: 76,894 | V48: 76,894 | W48: 76,894 | X48: 76,894 | Y48: 76,894 | Z48: 76,894 | AA48: 76,894 | AB48: 76,894 | AC48: 76,894 | AD48: 76,894 | AE48: 76,894 | AF48: 76,894 | AG48: 76,894 | AH48: 76,894 | AI48: 76,894 | AJ48: =$B$31*$B$42 -> 76,894 | AK48: 76,894 | AL48: 76,894 | AM48: 76,894 | AN48: 76,894 | AO48: 76,894 | AP48: 76,894 | AQ48: 76,894 | AR48: 76,894 | AS48: 76,894 | AT48: 76,894 | AU48: 76,894 | AV48: 76,894 | AW48: 76,894 | AX48: 76,894 | AY48: 76,894 | AZ48: 76,894
A49: Investment cost [USD] | B49: =$B$40 -> 258,031 | C49: =$B$41 -> 1,098,172 | D49: 0 | E49: 0 | F49: 0 | G49: 0 | H49: 0 | I49: 0 | J49: 0 | K49: 0 | L49: 0 | M49: 0 | N49: 0 | O49: 0 | P49: 0 | Q49: 0 | R49: 0 | S49: 0 | T49: 0 | U49: 0 | V49: 0 | W49: 0 | X49: 0 | Y49: 0 | Z49: 0 | AA49: 0 | AB49: 0 | AC49: 0 | AD49: 0 | AE49: 0 | AF49: 0 | AG49: 0 | AH49: 0 | AI49: 0 | AJ49: 0 | AK49: 0 | AL49: 0 | AM49: 0 | AN49: 0 | AO49: 0 | AP49: 0 | AQ49: 0 | AR49: 0 | AS49: 0 | AT49: 0 | AU49: 0 | AV49: 0 | AW49: 0 | AX49: 0 | AY49: 0 | AZ49: 0
A50: Cash flow [USD] | B50: =B47-B48-B49 -> -258,031 | C50: =C47-C48-C49 -> -1,098,172 | D50: 32,773 | E50: 32,773 | F50: 32,773 | G50: 32,773 | H50: 32,773 | I50: 32,773 | J50: 32,773 | K50: 32,773 | L50: 32,773 | M50: 32,773 | N50: 32,773 | O50: 32,773 | P50: 32,773 | Q50: 32,773 | R50: 32,773 | S50: 32,773 | T50: 32,773 | U50: 32,773 | V50: 32,773 | W50: 32,773 | X50: 32,773 | Y50: 32,773 | Z50: 32,773 | AA50: 32,773 | AB50: 32,773 | AC50: 32,773 | AD50: 32,773 | AE50: 32,773 | AF50: 32,773 | AG50: 32,773 | AH50: =AH47-AH48-AH49 -> 32,773 | AI50: 32,773 | AJ50: 32,773 | AK50: 32,773 | AL50: 32,773 | AM50: 32,773 | AN50: 32,773 | AO50: 32,773 | AP50: 32,773 | AQ50: 32,773 | AR50: 32,773 | AS50: 32,773 | AT50: 32,773 | AU50: 32,773 | AV50: 32,773 | AW50: 32,773 | AX50: 32,773 | AY50: 32,773 | AZ50: 32,773
A51: Actualized cash flow [USD] | B51: =B50/(1+$B$4)^B46 -> -258,031 | C51: =C50/(1+$B$4)^C46 -> -1,016,826 | D51: =D50/(1+$B$4)^D46 -> 28,097 | E51: 26,016 | F51: 24,089 | G51: 22,304 | H51: 20,652 | I51: 19,122 | J51: 17,706 | K51: 16,394 | L51: 15,180 | M51: 14,056 | N51: 13,014 | O51: 12,050 | P51: 11,158 | Q51: 10,331 | R51: 9,566 | S51: 8,857 | T51: 8,201 | U51: 7,594 | V51: 7,031 | W51: 6,510 | X51: 6,028 | Y51: 5,582 | Z51: 5,168 | AA51: 4,785 | AB51: 4,431 | AC51: 4,103 | AD51: 3,799 | AE51: 3,517 | AF51: 3,257 | AG51: 3,016 | AH51: 2,792 | AI51: 2,585 | AJ51: 2,394 | AK51: 2,217 | AL51: 2,052 | AM51: 1,900 | AN51: 1,760 | AO51: 1,629 | AP51: 1,509 | AQ51: 1,397 | AR51: 1,293 | AS51: 1,198 | AT51: 1,109 | AU51: 1,027 | AV51: 951 | AW51: 880 | AX51: 815 | AY51: 755 | AZ51: 699
A52: NPV(t) [USD] | B52: =B51 -> -258,031 | C52: =C51+B52 -> -1,274,857 | D52: =D51+C52 -> -1,246,760 | E52: =E51+D52 -> -1,220,744 | F52: -1,196,655 | G52: -1,174,351 | H52: -1,153,698 | I52: -1,134,576 | J52: -1,116,870 | K52: -1,100,475 | L52: -1,085,295 | M52: -1,071,240 | N52: -1,058,225 | O52: -1,046,175 | P52: -1,035,017 | Q52: -1,024,686 | R52: -1,015,120 | S52: -1,006,263 | T52: -998,061 | U52: -990,467 | V52: -983,436 | W52: -976,926 | X52: -970,898 | Y52: -965,316 | Z52: -960,148 | AA52: -955,362 | AB52: -950,931 | AC52: -946,829 | AD52: -943,030 | AE52: -939,513 | AF52: -936,256 | AG52: -933,240 | AH52: -930,448 | AI52: =AI51+AH52 -> -927,862 | AJ52: -925,469 | AK52: -923,252 | AL52: -921,200 | AM52: -919,299 | AN52: -917,540 | AO52: -915,910 | AP52: -914,402 | AQ52: -913,005 | AR52: -911,712 | AS52: -910,514 | AT52: -909,405 | AU52: -908,379 | AV52: -907,428 | AW52: -906,548 | AX52: -905,733 | AY52: -904,978 | AZ52: -904,279
A53: Net Present Value(SL) [USD] | B53: =HLOOKUP($B$5,$B$46:$AZ$52,7,FALSE) -> -936,256
A55: Pay Back Time (PBT) method
A56: Pay Back Time [y] | B56: =$B$42/$B$37 -> 12.37
A58: Levelized energy cost (LEC) [USD/kWh] method
A59: Years scenario | B59: 0 | C59: 1 | D59: 2 | E59: 3 | F59: 4 | G59: 5 | H59: 6 | I59: 7 | J59: 8 | K59: 9 | L59: 10 | M59: 11 | N59: 12 | O59: 13 | P59: 14 | Q59: 15 | R59: 16 | S59: 17 | T59: 18 | U59: 19 | V59: 20 | W59: 21 | X59: 22 | Y59: 23 | Z59: 24 | AA59: 25 | AB59: 26 | AC59: 27 | AD59: 28 | AE59: 29 | AF59: 30 | AG59: 31 | AH59: 32 | AI59: 33 | AJ59: 34 | AK59: 35 | AL59: 36 | AM59: 37 | AN59: 38 | AO59: 39 | AP59: 40 | AQ59: 41 | AR59: 42 | AS59: 43 | AT59: 44 | AU59: 45 | AV59: 46 | AW59: 47 | AX59: 48 | AY59: 49 | AZ59: 50
A60: O&M costs [USD] | B60: 0 | C60: 0 | D60: =$B$31*$B$42 -> 76,894 | E60: 76,894 | F60: 76,894 | G60: 76,894 | H60: 76,894 | I60: 76,894 | J60: 76,894 | K60: 76,894 | L60: 76,894 | M60: 76,894 | N60: 76,894 | O60: 76,894 | P60: 76,894 | Q60: 76,894 | R60: 76,894 | S60: 76,894 | T60: 76,894 | U60: 76,894 | V60: 76,894 | W60: 76,894 | X60: 76,894 | Y60: 76,894 | Z60: 76,894 | AA60: 76,894 | AB60: 76,894 | AC60: 76,894 | AD60: 76,894 | AE60: 76,894 | AF60: 76,894 | AG60: 76,894 | AH60: 76,894 | AI60: 76,894 | AJ60: =$B$31*$B$42 -> 76,894 | AK60: 76,894 | AL60: 76,894 | AM60: 76,894 | AN60: 76,894 | AO60: 76,894 | AP60: 76,894 | AQ60: 76,894 | AR60: 76,894 | AS60: 76,894 | AT60: 76,894 | AU60: 76,894 | AV60: 76,894 | AW60: 76,894 | AX60: 76,894 | AY60: 76,894 | AZ60: 76,894
A61: Investment cost [USD] | B61: =$B$40 -> 258,031 | C61: =$B$41 -> 1,098,172 | D61: 0 | E61: 0 | F61: 0 | G61: 0 | H61: 0 | I61: 0 | J61: 0 | K61: 0 | L61: 0 | M61: 0 | N61: 0 | O61: 0 | P61: 0 | Q61: 0 | R61: 0 | S61: 0 | T61: 0 | U61: 0 | V61: 0 | W61: 0 | X61: 0 | Y61: 0 | Z61: 0 | AA61: 0 | AB61: 0 | AC61: 0 | AD61: 0 | AE61: 0 | AF61: 0 | AG61: 0 | AH61: 0 | AI61: 0 | AJ61: 0 | AK61: 0 | AL61: 0 | AM61: 0 | AN61: 0 | AO61: 0 | AP61: 0 | AQ61: 0 | AR61: 0 | AS61: 0 | AT61: 0 | AU61: 0 | AV61: 0 | AW61: 0 | AX61: 0 | AY61: 0 | AZ61: 0
A62: LEC(t) numerator [USD] | B62: =(B60+B61)/(1+$B$4)^B$59 -> 258,031 | C62: =((C60+C61)/(1+$B$4)^C$59)+B62 -> 1,274,857 | D62: =((D60+D61)/(1+$B$4)^D$59)+C62 -> 1,340,781 | E62: 1,401,822 | F62: 1,458,342 | G62: 1,510,675 | H62: 1,559,131 | I62: 1,603,998 | J62: 1,645,541 | K62: 1,684,008 | L62: 1,719,624 | M62: 1,752,603 | N62: 1,783,139 | O62: 1,811,413 | P62: 1,837,592 | Q62: 1,861,832 | R62: 1,884,277 | S62: 1,905,059 | T62: 1,924,302 | U62: 1,942,119 | V62: 1,958,616 | W62: 1,973,892 | X62: 1,988,036 | Y62: 2,001,132 | Z62: 2,013,258 | AA62: 2,024,486 | AB62: 2,034,882 | AC62: 2,044,509 | AD62: 2,053,422 | AE62: 2,061,674 | AF62: 2,069,316 | AG62: 2,076,392 | AH62: 2,082,943 | AI62: 2,089,009 | AJ62: 2,094,626 | AK62: 2,099,826 | AL62: 2,104,642 | AM62: 2,109,101 | AN62: 2,113,229 | AO62: 2,117,052 | AP62: 2,120,591 | AQ62: 2,123,869 | AR62: 2,126,903 | AS62: 2,129,713 | AT62: 2,132,315 | AU62: 2,134,724 | AV62: 2,136,954 | AW62: 2,139,019 | AX62: 2,140,932 | AY62: 2,142,702 | AZ62: 2,144,342
A63: LEC(t) denominator [kWh] | B63: =$B$18*1000/(1+$B$4)^B$59 -> 2,834,057 | C63: =($B$18*1000/(1+$B$4)^C$59)+B63 -> 5,458,183 | D63: =($B$18*1000/(1+$B$4)^D$59)+C63 -> 7,887,930 | E63: 10,137,695 | F63: 12,220,811 | G63: 14,149,623 | H63: 15,935,559 | I63: 17,589,204 | J63: 19,120,357 | K63: 20,538,090 | L63: 21,850,807 | M63: 23,066,285 | N63: 24,191,728 | O63: 25,233,805 | P63: 26,198,691 | Q63: 27,092,104 | R63: 27,919,338 | S63: 28,685,295 | T63: 29,394,515 | U63: 30,051,200 | V63: 30,659,242 | W63: 31,222,244 | X63: 31,743,541 | Y63: 32,226,225 | Z63: 32,673,153 | AA63: 33,086,976 | AB63: 33,470,146 | AC63: 33,824,932 | AD63: 34,153,438 | AE63: 34,457,611 | AF63: 34,739,252 | AG63: 35,000,030 | AH63: 35,241,492 | AI63: 35,465,068 | AJ63: 35,672,082 | AK63: 35,863,762 | AL63: 36,041,244 | AM63: 36,205,579 | AN63: 36,357,741 | AO63: 36,498,631 | AP63: 36,629,086 | AQ63: 36,749,877 | AR63: 36,861,720 | AS63: 36,965,279 | AT63: 37,061,167 | AU63: 37,149,952 | AV63: 37,232,160 | AW63: 37,308,279 | AX63: 37,378,759 | AY63: 37,444,019 | AZ63: 37,504,444
A64: Levelized Energy Cost [USD/kWh] | B64: =HLOOKUP($B$5,$B$59:$AZ$63,4,FALSE)/HLOOKUP($B$5,$B$59:$AZ$63,5,FALSE) -> 0.0596
A66: Internal Rate of Return (IRR) method
A67: Years scenario | B67: 0 | C67: 1 | D67: 2 | E67: 3 | F67: 4 | G67: 5 | H67: 6 | I67: 7 | J67: 8 | K67: 9 | L67: 10 | M67: 11 | N67: 12 | O67: 13 | P67: 14 | Q67: 15 | R67: 16 | S67: 17 | T67: 18 | U67: 19 | V67: 20 | W67: 21 | X67: 22 | Y67: 23 | Z67: 24 | AA67: 25 | AB67: 26 | AC67: 27 | AD67: 28 | AE67: 29 | AF67: 30 | AG67: 31 | AH67: 32 | AI67: 33 | AJ67: 34 | AK67: 35 | AL67: 36 | AM67: 37 | AN67: 38 | AO67: 39 | AP67: 40 | AQ67: 41 | AR67: 42 | AS67: 43 | AT67: 44 | AU67: 45 | AV67: 46 | AW67: 47 | AX67: 48 | AY67: 49 | AZ67: 50
A68: Revenues [USD] | B68: 0 | C68: 0 | D68: =$B$37 -> 109,667 | E68: 109,667 | F68: 109,667 | G68: 109,667 | H68: 109,667 | I68: 109,667 | J68: 109,667 | K68: 109,667 | L68: 109,667 | M68: 109,667 | N68: 109,667 | O68: 109,667 | P68: 109,667 | Q68: 109,667 | R68: 109,667 | S68: 109,667 | T68: 109,667 | U68: 109,667 | V68: 109,667 | W68: 109,667 | X68: 109,667 | Y68: 109,667 | Z68: 109,667 | AA68: 109,667 | AB68: 109,667 | AC68: 109,667 | AD68: 109,667 | AE68: 109,667 | AF68: 109,667 | AG68: 109,667 | AH68: 109,667 | AI68: 109,667 | AJ68: =$B$37 -> 109,667 | AK68: 109,667 | AL68: 109,667 | AM68: 109,667 | AN68: 109,667 | AO68: 109,667 | AP68: 109,667 | AQ68: 109,667 | AR68: 109,667 | AS68: 109,667 | AT68: 109,667 | AU68: 109,667 | AV68: 109,667 | AW68: 109,667 | AX68: 109,667 | AY68: 109,667 | AZ68: 109,667
A69: O&M costs [USD] | B69: 0 | C69: 0 | D69: =$B$31*$B$42 -> 76,894 | E69: 76,894 | F69: 76,894 | G69: 76,894 | H69: 76,894 | I69: 76,894 | J69: 76,894 | K69: 76,894 | L69: 76,894 | M69: 76,894 | N69: 76,894 | O69: 76,894 | P69: 76,894 | Q69: 76,894 | R69: 76,894 | S69: 76,894 | T69: 76,894 | U69: 76,894 | V69: 76,894 | W69: 76,894 | X69: 76,894 | Y69: 76,894 | Z69: 76,894 | AA69: 76,894 | AB69: 76,894 | AC69: 76,894 | AD69: 76,894 | AE69: 76,894 | AF69: 76,894 | AG69: 76,894 | AH69: 76,894 | AI69: 76,894 | AJ69: =$B$31*$B$42 -> 76,894 | AK69: 76,894 | AL69: 76,894 | AM69: 76,894 | AN69: 76,894 | AO69: 76,894 | AP69: 76,894 | AQ69: 76,894 | AR69: 76,894 | AS69: 76,894 | AT69: 76,894 | AU69: 76,894 | AV69: 76,894 | AW69: 76,894 | AX69: 76,894 | AY69: 76,894 | AZ69: 76,894
A70: Investment cost [USD] | B70: =$B$40 -> 258,031 | C70: =$B$41 -> 1,098,172 | D70: 0 | E70: 0 | F70: 0 | G70: 0 | H70: 0 | I70: 0 | J70: 0 | K70: 0 | L70: 0 | M70: 0 | N70: 0 | O70: 0 | P70: 0 | Q70: 0 | R70: 0 | S70: 0 | T70: 0 | U70: 0 | V70: 0 | W70: 0 | X70: 0 | Y70: 0 | Z70: 0 | AA70: 0 | AB70: 0 | AC70: 0 | AD70: 0 | AE70: 0 | AF70: 0 | AG70: 0 | AH70: 0 | AI70: 0 | AJ70: 0 | AK70: 0 | AL70: 0 | AM70: 0 | AN70: 0 | AO70: 0 | AP70: 0 | AQ70: 0 | AR70: 0 | AS70: 0 | AT70: 0 | AU70: 0 | AV70: 0 | AW70: 0 | AX70: 0 | AY70: 0 | AZ70: 0
A71: Cash flow [USD] | B71: =B68-B69-B70 -> -258,031 | C71: -1,098,172 | D71: 32,773 | E71: 32,773 | F71: 32,773 | G71: 32,773 | H71: 32,773 | I71: 32,773 | J71: 32,773 | K71: 32,773 | L71: 32,773 | M71: 32,773 | N71: 32,773 | O71: 32,773 | P71: 32,773 | Q71: 32,773 | R71: 32,773 | S71: 32,773 | T71: 32,773 | U71: 32,773 | V71: 32,773 | W71: 32,773 | X71: 32,773 | Y71: 32,773 | Z71: 32,773 | AA71: 32,773 | AB71: 32,773 | AC71: 32,773 | AD71: 32,773 | AE71: 32,773 | AF71: 32,773 | AG71: 32,773 | AH71: =AH68-AH69-AH70 -> 32,773 | AI71: 32,773 | AJ71: 32,773 | AK71: 32,773 | AL71: 32,773 | AM71: 32,773 | AN71: 32,773 | AO71: 32,773 | AP71: 32,773 | AQ71: 32,773 | AR71: 32,773 | AS71: 32,773 | AT71: 32,773 | AU71: 32,773 | AV71: 32,773 | AW71: 32,773 | AX71: 32,773 | AY71: 32,773 | AZ71: 32,773
A72: Internal Rate of Return % | B72: =IRR($B$71:INDEX($B$67:$AZ$71,5,$B$5),$B$10) -> -2.49%
A75: SHEET OUTPUT
A77: First year revenues [USD] | B77: =$B$37 -> 109,667
A78: Specific plant cost [USD/kW] | B78: =$B$43 -> 3,989
A80: Investment cost [USD] | B80: =$B$42 -> 1,356,203
A81: Net Present Value(SL) [USD] | B81: =$B$53 -> -936,256
A82: Pay Back Time [y] | B82: =$B$56 -> 12.37
A83: Levelized Energy Cost [USD/kWh] | B83: =$B$64 -> 0.0596
A84: Internal Rate of Return % | B84: =$B$72 -> -2.49%
A110: END SHEET

Sheet Simulation
A1: INPUT DATA
A3: Utilities data
A4: Utilities load factor | B4: 0.60
A5: Utilities minimum power (preferential loads) [kW] | B5: 275.00
A6: Utilities peak power (total loads) [kW] | B6: 566.00
A8: SHEET OUTPUT
A46: Maximize annual productivity | C46: Maximize Net Present Value | E46: Minimize Levelized Energy Cost | G46: Maximize Internal Rate of Return
A47: Max annual productivity power [kW] | B47: 342.61 | C47: Max Net Present Value power [kW] | D47: 342.61 | E47: Min Levelized Energy Cost power [kW] | F47: 342.61 | G47: Max Internal Rate of Return power [kW] | H47: 342.61
A48: Equivalent hours [h] | B48: 8287 | C48: Equivalent hours [h] | D48: 8287 | E48: Equivalent hours [h] | F48: 8287 | G48: Equivalent hours [h] | H48: 8287
A49: Operative hours [h] | B49: 8760 | C49: Operative hours [h] | D49: 8760 | E49: Operative hours [h] | F49: 8760 | G49: Operative hours [h] | H49: 8760
A50: Power plant load factor | B50: 1.00 | C50: Power plant load factor | D50: 1.00 | E50: Power plant load factor | F50: 1.00 | G50: Power plant load factor | H50: 1.00
A51: Annual productivity [MWh] | B51: 2839.06 | C51: Annual productivity [MWh] | D51: 2839.06 | E51: Annual productivity [MWh] | F51: 2839.06 | G51: Annual productivity [MWh] | H51: 2839.06
A52: Investment cost [USD] | B52: 1,359,693 | C52: Investment cost [USD] | D52: 1,359,693 | E52: Investment cost [USD] | F52: 1,359,693 | G52: Investment cost [USD] | H52: 1,359,693
A53: NPV [USD] | B53: 626,046 | C53: NPV [USD] | D53: 626,046 | E53: NPV [USD] | F53: 626,046 | G53: NPV [USD] | H53: 626,046
A54: PBT [y] | B54: 5.21 | C54: PBT [y] | D54: 5.21 | E54: PBT [y] | F54: 5.21 | G54: PBT [y] | H54: 5.21
A55: LEC [USD/kWh] | B55: 0.0596 | C55: LEC [USD/kWh] | D55: 0.0596 | E55: LEC [USD/kWh] | F55: 0.0596 | G55: LEC [USD/kWh] | H55: 0.0596
A56: IRR % | B56: 12.78% | C56: IRR % | D56: 12.78% | E56: IRR % | F56: 12.78% | G56: IRR % | H56: 12.78%
A65: COMPUTATIONS
A67: Simulation power step [kW] | B67: =($B$6-$B$5)/99 -> 2.94
A69: Table Simulation
A70: Power group electrical power [kW] | B70: Equivalent hours [h] | C70: Operative hours [h] | D70: Power plant load factor | E70: Annual productivity [MWh] | F70: Investment cost [USD] | G70: NPV [USD] | H70: PBT [y] | I70: LEC [USD/kWh] | J70: IRR % | K70: Power group electrical power [kW] | L70: Row counter
A71: =$B$5 -> 275.00 | B71: 8380.95 | C71: 6552.00 | D71: 0.75 | E71: 2304.76 | F71: 1,259,896 | G71: 213,053 | H71: 5.94 | I71: 0.0700 | J71: 0.10 | K71: =$B$5 -> 275.00 | L71: 1.00
A72: =A71+$B$67 -> 277.94 | B72: 8379.15 | C72: 8760.00 | D72: 1.00 | E72: 2328.90 | F72: 1,264,244 | G72: 232,062 | H72: 5.90 | I72: 0.0694 | J72: 0.10 | K72: =K71+$B$67 -> 277.94 | L72: 2.00
A73: =A72+$B$67 -> 280.88 | B73: 8377.35 | C73: 8760.00 | D73: 1.00 | E73: 2353.02 | F73: 1,268,542 | G73: 251,118 | H73: 5.86 | I73: 0.0688 | J73: 0.10 | K73: =K72+$B$67 -> 280.88 | L73: 3.00
A74: 283.82 | B74: 8375.54 | C74: 8760.00 | D74: 1.00 | E74: 2377.13 | F74: 1,272,846 | G74: 270,131 | H74: 5.82 | I74: 0.0683 | J74: 0.10 | K74: 283.82 | L74: 4.00
A75: 286.76 | B75: 8373.73 | C75: 8760.00 | D75: 1.00 | E75: 2401.23 | F75: 1,277,100 | G75: 289,192 | H75: 5.78 | I75: 0.0677 | J75: 0.10 | K75: 286.76 | L75: 5.00
A76: 289.70 | B76: 8371.92 | C76: 8760.00 | D76: 1.00 | E76: 2425.32 | F76: 1,281,334 | G76: 308,255 | H76: 5.74 | I76: 0.0672 | J76: 0.11 | K76: 289.70 | L76: 6.00
A77: 292.64 | B77: 8370.10 | C77: 8760.00 | D77: 1.00 | E77: 2449.40 | F77: 1,285,575 | G77: 327,274 | H77: 5.70 | I77: 0.0666 | J77: 0.11 | K77: 292.64 | L77: 7.00
A78: 295.58 | B78: 8368.28 | C78: 8760.00 | D78: 1.00 | E78: 2473.46 | F78: 1,294,898 | G78: 338,090 | H78: 5.69 | I78: 0.0664 | J78: 0.11 | K78: 295.58 | L78: 8.00
A79: 298.52 | B79: 8366.45 | C79: 8760.00 | D79: 1.00 | E79: 2497.51 | F79: 1,299,099 | G79: 357,121 | H79: 5.65 | I79: 0.0659 | J79: 0.11 | K79: 298.52 | L79: 9.00
A80: 301.45 | B80: 8364.62 | C80: 8760.00 | D80: 1.00 | E80: 2521.55 | F80: 1,303,252 | G80: 376,200 | H80: 5.62 | I80: 0.0654 | J80: 0.11 | K80: 301.45 | L80: 10.00
A81: 304.39 | B81: 8362.79 | C81: 8760.00 | D81: 1.00 | E81: 2545.58 | F81: 1,307,385 | G81: 395,279 | H81: 5.58 | I81: 0.0649 | J81: 0.11 | K81: 304.39 | L81: 11.00
A82: 307.33 | B82: 8360.95 | C82: 8760.00 | D82: 1.00 | E82: 2569.60 | F82: 1,311,528 | G82: 414,312 | H82: 5.55 | I82: 0.0644 | J82: 0.11 | K82: 307.33 | L82: 12.00
A83: 310.27 | B83: 8359.11 | C83: 8760.00 | D83: 1.00 | E83: 2593.60 | F83: 1,315,622 | G83: 433,393 | H83: 5.51 | I83: 0.0639 | J83: 0.11 | K83: 310.27 | L83: 13.00
A84: 313.21 | B84: 8357.26 | C84: 8760.00 | D84: 1.00 | E84: 2617.60 | F84: 1,319,728 | G84: 452,427 | H84: 5.48 | I84: 0.0634 | J84: 0.12 | K84: 313.21 | L84: 14.00
A85: 316.15 | B85: 8355.41 | C85: 8760.00 | D85: 1.00 | E85: 2641.58 | F85: 1,323,786 | G85: 471,508 | H85: 5.45 | I85: 0.0630 | J85: 0.12 | K85: 316.15 | L85: 15.00
A86: 319.09 | B86: 8353.55 | C86: 8760.00 | D86: 1.00 | E86: 2665.54 | F86: 1,327,880 | G86: 490,502 | H86: 5.41 | I86: 0.0625 | J86: 0.12 | K86: 319.09 | L86: 16.00
A87: 322.03 | B87: 8351.69 | C87: 8760.00 | D87: 1.00 | E87: 2689.50 | F87: 1,331,931 | G87: 509,536 | H87: 5.38 | I87: 0.0621 | J87: 0.12 | K87: 322.03 | L87: 17.00
A88: 324.97 | B88: 8349.82 | C88: 8760.00 | D88: 1.00 | E88: 2713.44 | F88: 1,335,935 | G88: 528,616 | H88: 5.35 | I88: 0.0617 | J88: 0.12 | K88: 324.97 | L88: 18.00
A89: 327.91 | B89: 8347.95 | C89: 8760.00 | D89: 1.00 | E89: 2737.37 | F89: 1,339,951 | G89: 547,649 | H89: 5.32 | I89: 0.0612 | J89: 0.12 | K89: 327.91 | L89: 19.00
A90: 330.85 | B90: 8346.07 | C90: 8760.00 | D90: 1.00 | E90: 2761.29 | F90: 1,343,921 | G90: 566,727 | H90: 5.29 | I90: 0.0608 | J90: 0.12 | K90: 330.85 | L90: 20.00
A91: 333.79 | B91: 8344.19 | C91: 8760.00 | D91: 1.00 | E91: 2785.19 | F91: 1,347,874 | G91: 585,805 | H91: 5.26 | I91: 0.0604 | J91: 0.13 | K91: 333.79 | L91: 21.00
A92: 336.73 | B92: 8342.30 | C92: 8760.00 | D92: 1.00 | E92: 2809.08 | F92: 1,351,840 | G92: 604,834 | H92: 5.23 | I92: 0.0600 | J92: 0.13 | K92: 336.73 | L92: 22.00
A93: 339.67 | B93: 8339.40 | C93: 8760.00 | D93: 1.00 | E93: 2832.62 | F93: 1,355,759 | G93: 623,583 | H93: 5.20 | I93: 0.0596 | J93: 0.13 | K93: 339.67 | L93: 23.00
A94: 342.61 | B94: 8286.65 | C94: 8760.00 | D94: 1.00 | E94: 2839.06 | F94: 1,359,693 | G94: 626,046 | H94: 5.21 | I94: 0.0596 | J94: 0.13 | K94: 342.61 | L94: 24.00
A95: 345.55 | B95: 8216.16 | C95: 8760.00 | D95: 1.00 | E95: 2839.06 | F95: 1,363,635 | G95: 622,360 | H95: 5.22 | I95: 0.0597 | J95: 0.13 | K95: 345.55 | L95: 25.00
A96: 348.48 | B96: 8146.86 | C96: 8760.00 | D96: 1.00 | E96: 2839.06 | F96: 1,367,507 | G96: 618,771 | H96: 5.24 | I96: 0.0598 | J96: 0.13 | K96: 348.48 | L96: 26.00
A97: 351.42 | B97: 8078.71 | C97: 8760.00 | D97: 1.00 | E97: 2839.06 | F97: 1,371,393 | G97: 615,145 | H97: 5.25 | I97: 0.0599 | J97: 0.13 | K97: 351.42 | L97: 27.00
A98: 354.36 | B98: 8011.70 | C98: 8760.00 | D98: 1.00 | E98: 2839.06 | F98: 1,380,778 | G98: 602,868 | H98: 5.29 | I98: 0.0602 | J98: 0.13 | K98: 354.36 | L98: 28.00
A99: 357.30 | B99: 7945.79 | C99: 8760.00 | D99: 1.00 | E99: 2839.06 | F99: 1,384,604 | G99: 599,318 | H99: 5.30 | I99: 0.0603 | J99: 0.12 | K99: 357.30 | L99: 29.00
A100: 360.24 | B100: 7880.96 | C100: 8760.00 | D100: 1.00 | E100: 2839.06 | F100: 1,388,445 | G100: 595,731 | H100: 5.32 | I100: 0.0604 | J100: 0.12 | K100: 360.24 | L100: 30.00
A101: 363.18 | B101: 7817.18 | C101: 8760.00 | D101: 1.00 | E101: 2839.06 | F101: 1,392,241 | G101: 592,202 | H101: 5.33 | I101: 0.0605 | J101: 0.12 | K101: 363.18 | L101: 31.00
A102: 366.12 | B102: 7754.42 | C102: 8760.00 | D102: 1.00 | E102: 2839.06 | F102: 1,396,054 | G102: 588,635 | H102: 5.34 | I102: 0.0606 | J102: 0.12 | K102: 366.12 | L102: 32.00
A103: 369.06 | B103: 7692.66 | C103: 8760.00 | D103: 1.00 | E103: 2839.06 | F103: 1,399,821 | G103: 585,126 | H103: 5.36 | I103: 0.0607 | J103: 0.12 | K103: 369.06 | L103: 33.00
A104: 372.00 | B104: 7631.87 | C104: 8760.00 | D104: 1.00 | E104: 2839.06 | F104: 1,403,574 | G104: 581,626 | H104: 5.37 | I104: 0.0608 | J104: 0.12 | K104: 372.00 | L104: 34.00
A105: 374.94 | B105: 7572.04 | C105: 8760.00 | D105: 1.00 | E105: 2839.06 | F105: 1,407,399 | G105: 578,003 | H105: 5.39 | I105: 0.0609 | J105: 0.12 | K105: 374.94 | L105: 35.00
A106: 377.88 | B106: 7513.14 | C106: 8760.00 | D106: 1.00 | E106: 2839.06 | F106: 1,411,124 | G106: 574,523 | H106: 5.40 | I106: 0.0610 | J106: 0.12 | K106: 377.88 | L106: 36.00
A107: 380.82 | B107: 7455.15 | C107: 8760.00 | D107: 1.00 | E107: 2839.06 | F107: 1,414,835 | G107: 571,052 | H107: 5.42 | I107: 0.0611 | J107: 0.12 | K107: 380.82 | L107: 37.00
A108: 383.76 | B108: 7398.05 | C108: 8760.00 | D108: 1.00 | E108: 2839.06 | F108: 1,418,564 | G108: 567,543 | H108: 5.43 | I108: 0.0612 | J108: 0.12 | K108: 383.76 | L108: 38.00
A109: 386.70 | B109: 7341.81 | C109: 8760.00 | D109: 1.00 | E109: 2839.06 | F109: 1,422,249 | G109: 564,092 | H109: 5.45 | I109: 0.0613 | J109: 0.12 | K109: 386.70 | L109: 39.00
A110: 389.64 | B110: 7286.42 | C110: 8760.00 | D110: 1.00 | E110: 2839.06 | F110: 1,425,920 | G110: 560,650 | H110: 5.46 | I110: 0.0614 | J110: 0.12 | K110: 389.64 | L110: 40.00
A111: 392.58 | B111: 7231.87 | C111: 8760.00 | D111: 1.00 | E111: 2839.06 | F111: 1,429,609 | G111: 557,169 | H111: 5.47 | I111: 0.0615 | J111: 0.12 | K111: 392.58 | L111: 41.00
A112: 395.52 | B112: 7178.12 | C112: 8760.00 | D112: 1.00 | E112: 2839.06 | F112: 1,433,254 | G112: 553,745 | H112: 5.49 | I112: 0.0616 | J112: 0.12 | K112: 395.52 | L112: 42.00
A113: 398.45 | B113: 7125.17 | C113: 8760.00 | D113: 1.00 | E113: 2839.06 | F113: 1,436,887 | G113: 550,331 | H113: 5.50 | I113: 0.0617 | J113: 0.12 | K113: 398.45 | L113: 43.00
A114: 401.39 | B114: 7072.99 | C114: 8760.00 | D114: 1.00 | E114: 2839.06 | F114: 1,440,538 | G114: 546,876 | H114: 5.52 | I114: 0.0618 | J114: 0.12 | K114: 401.39 | L114: 44.00
A115: 404.33 | B115: 7021.57 | C115: 8760.00 | D115: 1.00 | E115: 2839.06 | F115: 1,444,200 | G115: 543,394 | H115: 5.53 | I115: 0.0619 | J115: 0.12 | K115: 404.33 | L115: 45.00
A116: 407.27 | B116: 6970.90 | C116: 8760.00 | D116: 1.00 | E116: 2839.06 | F116: 1,447,795 | G116: 540,007 | H116: 5.54 | I116: 0.0620 | J116: 0.12 | K116: 407.27 | L116: 46.00
A117: 410.21 | B117: 6920.95 | C117: 8760.00 | D117: 1.00 | E117: 2839.06 | F117: 1,451,410 | G117: 536,579 | H117: 5.56 | I117: 0.0621 | J117: 0.12 | K117: 410.21 | L117: 47.00
A118: 413.15 | B118: 6871.71 | C118: 8760.00 | D118: 1.00 | E118: 2839.06 | F118: 1,454,980 | G118: 533,209 | H118: 5.57 | I118: 0.0622 | J118: 0.12 | K118: 413.15 | L118: 48.00
A119: 416.09 | B119: 6823.16 | C119: 8760.00 | D119: 1.00 | E119: 2839.06 | F119: 1,458,571 | G119: 529,799 | H119: 5.58 | I119: 0.0623 | J119: 0.12 | K119: 416.09 | L119: 49.00
A120: 419.03 | B120: 6775.30 | C120: 8760.00 | D120: 1.00 | E120: 2839.06 | F120: 1,462,118 | G120: 526,446 | H120: 5.60 | I120: 0.0624 | J120: 0.12 | K120: 419.03 | L120: 50.00
A121: 421.97 | B121: 6728.10 | C121: 8760.00 | D121: 1.00 | E121: 2839.06 | F121: 1,471,683 | G121: 513,832 | H121: 5.63 | I121: 0.0628 | J121: 0.12 | K121: 421.97 | L121: 51.00
A122: 424.91 | B122: 6681.56 | C122: 8760.00 | D122: 1.00 | E122: 2839.06 | F122: 1,475,239 | G122: 510,454 | H122: 5.65 | I122: 0.0629 | J122: 0.12 | K122: 424.91 | L122: 52.00
A123: 427.85 | B123: 6635.66 | C123: 8760.00 | D123: 1.00 | E123: 2839.06 | F123: 1,478,752 | G123: 507,134 | H123: 5.66 | I123: 0.0630 | J123: 0.12 | K123: 427.85 | L123: 53.00
A124: 430.79 | B124: 6590.38 | C124: 8760.00 | D124: 1.00 | E124: 2839.06 | F124: 1,482,253 | G124: 503,821 | H124: 5.67 | I124: 0.0631 | J124: 0.12 | K124: 430.79 | L124: 54.00
A125: 433.73 | B125: 6545.72 | C125: 8760.00 | D125: 1.00 | E125: 2839.06 | F125: 1,485,831 | G125: 500,383 | H125: 5.69 | I125: 0.0632 | J125: 0.12 | K125: 433.73 | L125: 55.00
A126: 436.67 | B126: 6501.65 | C126: 8760.00 | D126: 1.00 | E126: 2839.06 | F126: 1,489,310 | G126: 497,087 | H126: 5.70 | I126: 0.0633 | J126: 0.11 | K126: 436.67 | L126: 56.00
A127: 439.61 | B127: 6458.18 | C127: 8760.00 | D127: 1.00 | E127: 2839.06 | F127: 1,492,779 | G127: 493,799 | H127: 5.72 | I127: 0.0634 | J127: 0.11 | K127: 439.61 | L127: 57.00
A128: 442.55 | B128: 6415.29 | C128: 8760.00 | D128: 1.00 | E128: 2839.06 | F128: 1,496,236 | G128: 490,519 | H128: 5.73 | I128: 0.0634 | J128: 0.11 | K128: 442.55 | L128: 58.00
A129: 445.48 | B129: 6372.96 | C129: 8760.00 | D129: 1.00 | E129: 2839.06 | F129: 1,499,715 | G129: 487,197 | H129: 5.74 | I129: 0.0635 | J129: 0.11 | K129: 445.48 | L129: 59.00
A130: 448.42 | B130: 6331.18 | C130: 8760.00 | D130: 1.00 | E130: 2839.06 | F130: 1,503,151 | G130: 483,933 | H130: 5.75 | I130: 0.0636 | J130: 0.11 | K130: 448.42 | L130: 60.00
A131: 451.36 | B131: 6289.95 | C131: 8760.00 | D131: 1.00 | E131: 2839.06 | F131: 1,506,577 | G131: 480,677 | H131: 5.77 | I131: 0.0637 | J131: 0.11 | K131: 451.36 | L131: 61.00
A132: 454.30 | B132: 6249.26 | C132: 8760.00 | D132: 1.00 | E132: 2839.06 | F132: 1,510,025 | G132: 477,378 | H132: 5.78 | I132: 0.0638 | J132: 0.11 | K132: 454.30 | L132: 62.00
A133: 457.24 | B133: 6209.08 | C133: 8760.00 | D133: 1.00 | E133: 2839.06 | F133: 1,513,430 | G133: 474,137 | H133: 5.79 | I133: 0.0639 | J133: 0.11 | K133: 457.24 | L133: 63.00
A134: 460.18 | B134: 6169.42 | C134: 8760.00 | D134: 1.00 | E134: 2839.06 | F134: 1,516,825 | G134: 470,904 | H134: 5.81 | I134: 0.0640 | J134: 0.11 | K134: 460.18 | L134: 64.00
A135: 463.12 | B135: 6130.27 | C135: 8760.00 | D135: 1.00 | E135: 2839.06 | F135: 1,520,242 | G135: 467,628 | H135: 5.82 | I135: 0.0641 | J135: 0.11 | K135: 463.12 | L135: 65.00
A136: 466.06 | B136: 6091.60 | C136: 8760.00 | D136: 1.00 | E136: 2839.06 | F136: 1,523,673 | G136: 464,325 | H136: 5.83 | I136: 0.0642 | J136: 0.11 | K136: 466.06 | L136: 66.00
A137: =A136+$B$67 -> 469.00 | B137: 6053.42 | C137: 8760.00 | D137: 1.00 | E137: 2839.06 | F137: 1,527,038 | G137: 461,114 | H137: 5.85 | I137: 0.0643 | J137: 0.11 | K137: =K136+$B$67 -> 469.00 | L137: 67.00
A138: 471.94 | B138: 6015.72 | C138: 8760.00 | D138: 1.00 | E138: 2839.06 | F138: 1,530,426 | G138: 457,860 | H138: 5.86 | I138: 0.0644 | J138: 0.11 | K138: 471.94 | L138: 68.00
A139: 474.88 | B139: 5978.49 | C139: 8760.00 | D139: 1.00 | E139: 2839.06 | F139: 1,533,771 | G139: 454,664 | H139: 5.87 | I139: 0.0645 | J139: 0.11 | K139: 474.88 | L139: 69.00
A140: 477.82 | B140: 5941.71 | C140: 8760.00 | D140: 1.00 | E140: 2839.06 | F140: 1,537,107 | G140: 451,475 | H140: 5.88 | I140: 0.0646 | J140: 0.11 | K140: 477.82 | L140: 70.00
A141: 480.76 | B141: 5905.38 | C141: 8760.00 | D141: 1.00 | E141: 2839.06 | F141: 1,540,466 | G141: 448,243 | H141: 5.90 | I141: 0.0647 | J141: 0.11 | K141: 480.76 | L141: 71.00
A142: 483.70 | B142: 5869.49 | C142: 8760.00 | D142: 1.00 | E142: 2839.06 | F142: 1,543,783 | G142: 445,068 | H142: 5.91 | I142: 0.0648 | J142: 0.11 | K142: 483.70 | L142: 72.00
A143: 486.64 | B143: 5834.04 | C143: 8760.00 | D143: 1.00 | E143: 2839.06 | F143: 1,547,091 | G143: 441,901 | H143: 5.92 | I143: 0.0648 | J143: 0.11 | K143: 486.64 | L143: 73.00
A144: 489.58 | B144: 5799.01 | C144: 8760.00 | D144: 1.00 | E144: 2839.06 | F144: 1,550,423 | G144: 438,690 | H144: 5.94 | I144: 0.0649 | J144: 0.11 | K144: 489.58 | L144: 74.00
A145: 492.52 | B145: 5764.40 | C145: 8760.00 | D145: 1.00 | E145: 2839.06 | F145: 1,553,712 | G145: 435,536 | H145: 5.95 | I145: 0.0650 | J145: 0.11 | K145: 492.52 | L145: 75.00
A146: 495.45 | B146: 5730.20 | C146: 8760.00 | D146: 1.00 | E146: 2839.06 | F146: 1,563,525 | G146: 422,536 | H146: 5.99 | I146: 0.0654 | J146: 0.11 | K146: 495.45 | L146: 76.00
A147: 498.39 | B147: 5696.41 | C147: 8760.00 | D147: 1.00 | E147: 2839.06 | F147: 1,566,853 | G147: 419,317 | H147: 6.00 | I147: 0.0655 | J147: 0.11 | K147: 498.39 | L147: 77.00
A148: 501.33 | B148: 5663.01 | C148: 8760.00 | D148: 1.00 | E148: 2839.06 | F148: 1,570,149 | G148: 416,140 | H148: 6.01 | I148: 0.0656 | J148: 0.11 | K148: 501.33 | L148: 78.00
A149: 504.27 | B149: 5630.00 | C149: 8760.00 | D149: 1.00 | E149: 2839.06 | F149: 1,573,403 | G149: 413,020 | H149: 6.02 | I149: 0.0657 | J149: 0.11 | K149: 504.27 | L149: 79.00
A150: 507.21 | B150: 5597.37 | C150: 8760.00 | D150: 1.00 | E150: 2839.06 | F150: 1,576,648 | G150: 409,907 | H150: 6.04 | I150: 0.0658 | J150: 0.11 | K150: 507.21 | L150: 80.00
A151: 510.15 | B151: 5565.12 | C151: 8760.00 | D151: 1.00 | E151: 2839.06 | F151: 1,579,919 | G151: 406,749 | H151: 6.05 | I151: 0.0659 | J151: 0.11 | K151: 510.15 | L151: 81.00
A152: 513.09 | B152: 5533.24 | C152: 8760.00 | D152: 1.00 | E152: 2839.06 | F152: 1,583,147 | G152: 403,649 | H152: 6.06 | I152: 0.0659 | J152: 0.11 | K152: 513.09 | L152: 82.00
A153: 516.03 | B153: 5501.72 | C153: 8760.00 | D153: 1.00 | E153: 2839.06 | F153: 1,586,366 | G153: 400,556 | H153: 6.07 | I153: 0.0660 | J153: 0.11 | K153: 516.03 | L153: 83.00
A154: 518.97 | B154: 5470.56 | C154: 8760.00 | D154: 1.00 | E154: 2839.06 | F154: 1,589,577 | G154: 397,469 | H154: 6.09 | I154: 0.0661 | J154: 0.11 | K154: 518.97 | L154: 84.00
A155: 521.91 | B155: 5434.52 | C155: 8760.00 | D155: 1.00 | E155: 2836.33 | F155: 1,592,814 | G155: 391,744 | H155: 6.10 | I155: 0.0663 | J155: 0.11 | K155: 521.91 | L155: 85.00
A156: 524.85 | B156: 5404.09 | C156: 8760.00 | D156: 1.00 | E156: 2836.33 | F156: 1,596,008 | G156: 388,670 | H156: 6.12 | I156: 0.0664 | J156: 0.11 | K156: 524.85 | L156: 86.00
A157: 527.79 | B157: 5373.99 | C157: 8760.00 | D157: 1.00 | E157: 2836.33 | F157: 1,599,194 | G157: 385,602 | H157: 6.13 | I157: 0.0665 | J157: 0.11 | K157: 527.79 | L157: 87.00
A158: 530.73 | B158: 5337.73 | C158: 8760.00 | D158: 1.00 | E158: 2832.88 | F158: 1,602,406 | G158: 379,212 | H158: 6.15 | I158: 0.0666 | J158: 0.10 | K158: 530.73 | L158: 88.00
A159: 533.67 | B159: 5308.33 | C159: 8760.00 | D159: 1.00 | E159: 2832.88 | F159: 1,605,633 | G159: 376,072 | H159: 6.16 | I159: 0.0667 | J159: 0.10 | K159: 533.67 | L159: 89.00
A160: 536.61 | B160: 5279.25 | C160: 8760.00 | D160: 1.00 | E160: 2832.88 | F160: 1,608,795 | G160: 373,023 | H160: 6.17 | I160: 0.0668 | J160: 0.10 | K160: 536.61 | L160: 90.00
A161: 539.55 | B161: 5244.10 | C161: 8760.00 | D161: 1.00 | E161: 2829.43 | F161: 1,611,984 | G161: 366,651 | H161: 6.19 | I161: 0.0670 | J161: 0.10 | K161: 539.55 | L161: 91.00
A162: 542.48 | B162: 5215.69 | C162: 8760.00 | D162: 1.00 | E162: 2829.43 | F162: 1,615,130 | G162: 363,615 | H162: 6.20 | I162: 0.0671 | J162: 0.10 | K162: 542.48 | L162: 92.00
A163: 545.42 | B163: 5181.26 | C163: 8760.00 | D163: 1.00 | E163: 2825.98 | F163: 1,618,268 | G163: 357,306 | H163: 6.22 | I163: 0.0672 | J163: 0.10 | K163: 545.42 | L163: 93.00
A164: 548.36 | B164: 5153.48 | C164: 8760.00 | D164: 1.00 | E164: 2825.98 | F164: 1,621,399 | G164: 354,282 | H164: 6.24 | I164: 0.0673 | J164: 0.10 | K164: 548.36 | L164: 94.00
A165: 551.30 | B165: 5126.01 | C165: 8760.00 | D165: 1.00 | E165: 2825.98 | F165: 1,624,557 | G165: 351,212 | H165: 6.25 | I165: 0.0674 | J165: 0.10 | K165: 551.30 | L165: 95.00
A166: 554.24 | B166: 5092.60 | C166: 8760.00 | D166: 1.00 | E166: 2822.53 | F166: 1,627,672 | G166: 344,921 | H166: 6.27 | I166: 0.0676 | J166: 0.10 | K166: 554.24 | L166: 96.00
A167: 557.18 | B167: 5065.73 | C167: 8760.00 | D167: 1.00 | E167: 2822.53 | F167: 1,630,780 | G167: 341,914 | H167: 6.28 | I167: 0.0677 | J167: 0.10 | K167: 557.18 | L167: 97.00
A168: 560.12 | B168: 5039.15 | C168: 8760.00 | D168: 1.00 | E168: 2822.53 | F168: 1,633,880 | G168: 338,914 | H168: 6.29 | I168: 0.0677 | J168: 0.10 | K168: 560.12 | L168: 98.00
A169: 563.06 | B169: 5006.72 | C169: 8760.00 | D169: 1.00 | E169: 2819.08 | F169: 1,637,008 | G169: 332,588 | H169: 6.31 | I169: 0.0679 | J169: 0.10 | K169: 563.06 | L169: 99.00
A170: 566.00 | B170: 4980.71 | C170: 8760.00 | D170: 1.00 | E170: 2819.08 | F170: 1,640,094 | G170: 329,599 | H170: 6.32 | I170: 0.0680 | J170: 0.10 | K170: 566.00 | L170: 100.00
A171: Power group electrical power [kW] | B171: Equivalent hours [h] | C171: Operative hours [h] | D171: Power plant load factor | E171: Annual productivity [MWh] | F171: Investment cost [USD] | G171: NPV [USD] | H171: PBT [y] | I171: LEC [USD/kWh] | J171: IRR % | K171: Power group electrical power [kW]
A172: OPTIMIZING | B172: Max Eh | C172: Max Oh | D172: Max LF | E172: Max AP | F172: Min IC | G172: Max NPV | H172: Min PBT | I172: Min LEC | J172: Max IRR
B173: =MAX(B$71:B$170) -> 8380.95 | C173: =MAX(C$71:C$170) -> 8760.00 | D173: =MAX(D$71:D$170) -> 1.00 | E173: =MAX(E$71:E$170) -> 2839.06 | F173: =MIN(F$71:F$170) -> 1,259,896 | G173: =MAX($G$71:$G$170) -> 626,046 | H173: =MIN(H$71:H$170) -> 5.20 | I173: =MIN(I$71:I$170) -> 0.0596 | J173: =MAX(J$71:J$170) -> 0.13
B174: Max Eh power [kW] | C174: Max Oh power [kW] | D174: Max LF power [kW] | E174: Max AP power [kW] | F174: Min IC power [kW] | G174: Max NPV power [kW] | H174: Min PBT power [kW] | I174: Min LEC power [kW] | J174: Max IRR power [kW]
B175: =VLOOKUP(B$173,B71:$K$170,10,FALSE) -> 275.00 | C175: =VLOOKUP(C$173,C71:$K$170,9,FALSE) -> 277.94 | D175: =VLOOKUP(D$173,D71:$K$170,8,FALSE) -> 277.94 | E175: =VLOOKUP(E$173,E71:$K$170,7,FALSE) -> 342.61 | F175: =VLOOKUP(F$173,F71:$K$170,6,FALSE) -> 275.00 | G175: =VLOOKUP(G$173,G71:$K$170,5,FALSE) -> 342.61 | H175: =VLOOKUP(H$173,H71:$K$170,4,FALSE) -> 339.67 | I175: =VLOOKUP(I$173,I71:$K$170,3,FALSE) -> 342.61 | J175: =VLOOKUP(J$173,J71:$K$170,2,FALSE) -> 342.61
A180: END SHEET
